{"text_format":"1","workbook":"xlsx","n_sheets":1,"sheets":["1-50"],"not_rendered":{"charts":0,"images":0,"macros":1,"external_links":0,"defined_names":0,"comments":0,"pivot_tables":0},"unopened":[],"bounds":{"document_bytes":16777216,"sheet_cells":100000,"rows_first":2000,"rows_last":500,"rows_between":2000,"halvings":0,"cell_chars":16384,"cell_head_chars":4096},"cells_cut":0,"cells_raw":0,"read":"whole","date_system":"1900"}

{"sheet":"1-50","index":0,"n_rows":951,"n_cols":10,"rows_kept":951,"cut":false,"hidden":false,"merged":[[5,12,6,12],[0,9,1,9],[2,1,3,1],[4,1,5,1],[6,1,7,1],[8,1,9,1],[0,1,1,1],[0,2,1,8],[10,1,11,1],[12,1,13,1],[14,1,15,1],[16,1,17,1],[21,1,22,1],[23,1,24,1],[25,1,26,1],[19,1,20,1],[19,2,20,8],[19,9,20,9],[33,1,34,1],[35,1,36,1],[38,1,39,1],[38,2,39,8],[38,9,39,9],[27,1,28,1],[29,1,30,1],[31,1,32,1],[46,1,47,1],[48,1,49,1],[50,1,51,1],[40,1,41,1],[42,1,43,1],[44,1,45,1],[59,1,60,1],[61,1,62,1],[63,1,64,1],[52,1,53,1],[54,1,55,1],[57,1,58,1],[57,2,58,8],[57,9,58,9],[71,1,72,1],[73,1,74,1],[76,1,77,1],[76,2,77,8],[76,9,77,9],[65,1,66,1],[67,1,68,1],[69,1,70,1],[84,1,85,1],[86,1,87,1],[88,1,89,1],[78,1,79,1],[80,1,81,1],[82,1,83,1],[97,1,98,1],[99,1,100,1],[101,1,102,1],[90,1,91,1],[92,1,93,1],[95,1,96,1],[95,2,96,8],[95,9,96,9],[109,1,110,1],[111,1,112,1],[114,1,115,1],[114,2,115,8],[114,9,115,9],[103,1,104,1],[105,1,106,1],[107,1,108,1],[122,1,123,1],[124,1,125,1],[126,1,127,1],[116,1,117,1],[118,1,119,1],[120,1,121,1],[135,1,136,1],[137,1,138,1],[139,1,140,1],[128,1,129,1],[130,1,131,1],[133,1,134,1],[133,2,134,8],[133,9,134,9],[147,1,148,1],[149,1,150,1],[152,1,153,1],[152,2,153,8],[152,9,153,9],[141,1,142,1],[143,1,144,1],[145,1,146,1],[154,1,155,1],[156,1,157,1],[158,1,159,1],[173,1,174,1],[175,1,176,1],[177,1,178,1],[166,1,167,1],[168,1,169,1],[171,1,172,1],[171,2,172,8],[171,9,172,9],[185,1,186,1],[187,1,188,1],[179,1,180,1],[181,1,182,1],[183,1,184,1],[160,1,161,1],[162,1,163,1],[164,1,165,1],[190,1,191,1],[190,2,191,8],[190,9,191,9],[192,1,193,1],[194,1,195,1],[195,12,196,12],[196,1,197,1],[198,1,199,1],[200,1,201,1],[202,1,203,1],[204,1,205,1],[206,1,207,1],[209,1,210,1],[209,2,210,8],[209,9,210,9],[211,1,212,1],[213,1,214,1],[215,1,216,1],[217,1,218,1],[219,1,220,1],[221,1,222,1],[223,1,224,1],[225,1,226,1],[228,1,229,1],[228,2,229,8],[228,9,229,9],[230,1,231,1],[232,1,233,1],[234,1,235,1],[236,1,237,1],[238,1,239,1],[240,1,241,1],[242,1,243,1],[244,1,245,1],[247,1,248,1],[247,2,248,8],[247,9,248,9],[249,1,250,1],[251,1,252,1],[253,1,254,1],[255,1,256,1],[257,1,258,1],[259,1,260,1],[261,1,262,1],[263,1,264,1],[266,1,267,1],[266,2,267,8],[266,9,267,9],[268,1,269,1],[270,1,271,1],[272,1,273,1],[274,1,275,1],[276,1,277,1],[278,1,279,1],[280,1,281,1],[282,1,283,1],[285,1,286,1],[285,2,286,8],[285,9,286,9],[287,1,288,1],[289,1,290,1],[291,1,292,1],[293,1,294,1],[295,1,296,1],[297,1,298,1],[299,1,300,1],[301,1,302,1],[304,1,305,1],[304,2,305,8],[304,9,305,9],[306,1,307,1],[308,1,309,1],[310,1,311,1],[312,1,313,1],[314,1,315,1],[316,1,317,1],[318,1,319,1],[320,1,321,1],[323,1,324,1],[323,2,324,8],[323,9,324,9],[325,1,326,1],[327,1,328,1],[329,1,330,1],[331,1,332,1],[333,1,334,1],[335,1,336,1],[337,1,338,1],[339,1,340,1],[342,1,343,1],[342,2,343,8],[342,9,343,9],[344,1,345,1],[346,1,347,1],[348,1,349,1],[350,1,351,1],[352,1,353,1],[354,1,355,1],[356,1,357,1],[358,1,359,1],[361,1,362,1],[361,2,362,8],[361,9,362,9],[363,1,364,1],[365,1,366,1],[367,1,368,1],[369,1,370,1],[371,1,372,1],[373,1,374,1],[375,1,376,1],[377,1,378,1],[380,1,381,1],[380,2,381,8],[380,9,381,9],[382,1,383,1],[384,1,385,1],[385,12,386,12],[386,1,387,1],[388,1,389,1],[390,1,391,1],[392,1,393,1],[394,1,395,1],[396,1,397,1],[399,1,400,1],[399,2,400,8],[399,9,400,9],[401,1,402,1],[403,1,404,1],[405,1,406,1],[407,1,408,1],[409,1,410,1],[411,1,412,1],[413,1,414,1],[415,1,416,1],[418,1,419,1],[418,2,419,8],[418,9,419,9],[420,1,421,1],[422,1,423,1],[424,1,425,1],[426,1,427,1],[428,1,429,1],[430,1,431,1],[432,1,433,1],[434,1,435,1],[437,1,438,1],[437,2,438,8],[437,9,438,9],[439,1,440,1],[441,1,442,1],[443,1,444,1],[445,1,446,1],[447,1,448,1],[449,1,450,1],[451,1,452,1],[453,1,454,1],[456,1,457,1],[456,2,457,8],[456,9,457,9],[458,1,459,1],[460,1,461,1],[462,1,463,1],[464,1,465,1],[466,1,467,1],[468,1,469,1],[470,1,471,1],[472,1,473,1],[475,1,476,1],[475,2,476,8],[475,9,476,9],[477,1,478,1],[479,1,480,1],[481,1,482,1],[483,1,484,1],[485,1,486,1],[487,1,488,1],[489,1,490,1],[491,1,492,1],[494,1,495,1],[494,2,495,8],[494,9,495,9],[496,1,497,1],[498,1,499,1],[500,1,501,1],[502,1,503,1],[504,1,505,1],[506,1,507,1],[508,1,509,1],[510,1,511,1],[513,1,514,1],[513,2,514,8],[513,9,514,9],[515,1,516,1],[517,1,518,1],[519,1,520,1],[521,1,522,1],[523,1,524,1],[525,1,526,1],[527,1,528,1],[529,1,530,1],[532,1,533,1],[532,2,533,8],[532,9,533,9],[534,1,535,1],[536,1,537,1],[538,1,539,1],[540,1,541,1],[542,1,543,1],[544,1,545,1],[546,1,547,1],[548,1,549,1],[551,1,552,1],[551,2,552,8],[551,9,552,9],[553,1,554,1],[555,1,556,1],[557,1,558,1],[559,1,560,1],[561,1,562,1],[563,1,564,1],[565,1,566,1],[567,1,568,1],[570,1,571,1],[570,2,571,8],[570,9,571,9],[572,1,573,1],[574,1,575,1],[575,12,576,12],[576,1,577,1],[578,1,579,1],[580,1,581,1],[582,1,583,1],[584,1,585,1],[586,1,587,1],[589,1,590,1],[589,2,590,8],[589,9,590,9],[591,1,592,1],[593,1,594,1],[595,1,596,1],[597,1,598,1],[599,1,600,1],[601,1,602,1],[603,1,604,1],[605,1,606,1],[608,1,609,1],[608,2,609,8],[608,9,609,9],[610,1,611,1],[612,1,613,1],[614,1,615,1],[616,1,617,1],[618,1,619,1],[620,1,621,1],[622,1,623,1],[624,1,625,1],[627,1,628,1],[627,2,628,8],[627,9,628,9],[629,1,630,1],[631,1,632,1],[633,1,634,1],[635,1,636,1],[637,1,638,1],[639,1,640,1],[641,1,642,1],[643,1,644,1],[646,1,647,1],[646,2,647,8],[646,9,647,9],[648,1,649,1],[650,1,651,1],[652,1,653,1],[654,1,655,1],[656,1,657,1],[658,1,659,1],[660,1,661,1],[662,1,663,1],[665,1,666,1],[665,2,666,8],[665,9,666,9],[667,1,668,1],[669,1,670,1],[671,1,672,1],[673,1,674,1],[675,1,676,1],[677,1,678,1],[679,1,680,1],[681,1,682,1],[684,1,685,1],[684,2,685,8],[684,9,685,9],[686,1,687,1],[688,1,689,1],[690,1,691,1],[692,1,693,1],[694,1,695,1],[696,1,697,1],[698,1,699,1],[700,1,701,1],[703,1,704,1],[703,2,704,8],[703,9,704,9],[705,1,706,1],[707,1,708,1],[709,1,710,1],[711,1,712,1],[713,1,714,1],[715,1,716,1],[717,1,718,1],[719,1,720,1],[722,1,723,1],[722,2,723,8],[722,9,723,9],[724,1,725,1],[726,1,727,1],[728,1,729,1],[730,1,731,1],[732,1,733,1],[734,1,735,1],[736,1,737,1],[738,1,739,1],[741,1,742,1],[741,2,742,8],[741,9,742,9],[743,1,744,1],[745,1,746,1],[747,1,748,1],[749,1,750,1],[751,1,752,1],[753,1,754,1],[755,1,756,1],[757,1,758,1],[760,1,761,1],[760,2,761,8],[760,9,761,9],[762,1,763,1],[764,1,765,1],[765,12,766,12],[766,1,767,1],[768,1,769,1],[770,1,771,1],[772,1,773,1],[774,1,775,1],[776,1,777,1],[779,1,780,1],[779,2,780,8],[779,9,780,9],[781,1,782,1],[783,1,784,1],[785,1,786,1],[787,1,788,1],[789,1,790,1],[791,1,792,1],[793,1,794,1],[795,1,796,1],[798,1,799,1],[798,2,799,8],[798,9,799,9],[800,1,801,1],[802,1,803,1],[804,1,805,1],[806,1,807,1],[808,1,809,1],[810,1,811,1],[812,1,813,1],[814,1,815,1],[817,1,818,1],[817,2,818,8],[817,9,818,9],[819,1,820,1],[821,1,822,1],[823,1,824,1],[825,1,826,1],[827,1,828,1],[829,1,830,1],[831,1,832,1],[833,1,834,1],[836,1,837,1],[836,2,837,8],[836,9,837,9],[838,1,839,1],[840,1,841,1],[842,1,843,1],[844,1,845,1],[846,1,847,1],[848,1,849,1],[850,1,851,1],[852,1,853,1],[855,1,856,1],[855,2,856,8],[855,9,856,9],[857,1,858,1],[859,1,860,1],[861,1,862,1],[863,1,864,1],[865,1,866,1],[867,1,868,1],[869,1,870,1],[871,1,872,1],[874,1,875,1],[874,2,875,8],[874,9,875,9],[876,1,877,1],[878,1,879,1],[880,1,881,1],[882,1,883,1],[884,1,885,1],[886,1,887,1],[888,1,889,1],[890,1,891,1],[893,1,894,1],[893,2,894,8],[893,9,894,9],[895,1,896,1],[897,1,898,1],[899,1,900,1],[901,1,902,1],[903,1,904,1],[905,1,906,1],[907,1,908,1],[909,1,910,1],[912,1,913,1],[912,2,913,8],[912,9,913,9],[914,1,915,1],[916,1,917,1],[918,1,919,1],[920,1,921,1],[922,1,923,1],[924,1,925,1],[926,1,927,1],[928,1,929,1],[931,1,932,1],[931,2,932,8],[931,9,932,9],[933,1,934,1],[935,1,936,1],[937,1,938,1],[939,1,940,1],[941,1,942,1],[943,1,944,1],[945,1,946,1],[947,1,948,1]]}
[null,"№ карты","Дата поездки                                                                                           № машины",null,null,null,null,null,null,"Кол-во  поездок"]
[]
[null,1,"2014-02-22","2014-02-22","2014-02-22","2014-02-22","2014-02-22","2014-02-22","2014-02-22",{"$f":"COUNTA(C4:I4)","v":7}]
[null,null,337,444,354,322,423,543,535,{"$f":"IF(J3=6,\"льгота\",\"\")","v":""}]
[null,"Имя владельца",null,null,null,null,null,null,null,0]
[null,null,null,null,null,null,null,null,null,{"$f":"IF(J5=6,\"льгота\",\"\")","v":""}]
[null,null,null,null,null,null,null,null,null,0]
[null,null,null,null,null,null,null,null,null,{"$f":"IF(J7=6,\"льгота\",\"\")","v":""}]
[null,"Телефоны",null,null,null,null,null,null,null,0]
[null,null,null,null,null,null,null,null,null,{"$f":"IF(J9=6,\"льгота\",\"\")","v":""}]
[null,null,null,null,null,null,null,null,null,0]
[null,null,null,null,null,null,null,null,null,{"$f":"IF(J11=6,\"льгота\",\"\")","v":""}]
[null,null,null,null,null,null,null,null,null,0]
[null,null,null,null,null,null,null,null,null,{"$f":"IF(J13=6,\"льгота\",\"\")","v":""}]
[null,null,null,null,null,null,null,null,null,0]
[null,null,null,null,null,null,null,null,null,{"$f":"IF(J15=6,\"льгота\",\"\")","v":""}]
[null,null,null,null,null,null,null,null,null,0]
[null,null,null,null,null,null,null,null,null,{"$f":"IF(J17=6,\"льгота\",\"\")","v":""}]
[]
[null,"№ карты","Дата поездки                                                                                           № машины",null,null,null,null,null,null,"Кол-во  поездок"]
[]
[null,2,null,null,null,null,null,null,null,{"$f":"COUNTA(C23:I23)","v":0}]
[null,null,null,null,null,null,null,null,null,{"$f":"IF(J22=6,\"льгота\",\"\")","v":""}]
[null,"Имя владельца",null,null,null,null,null,null,null,{"$f":"COUNTA(C25:I25)","v":0}]
[null,null,null,null,null,null,null,null,null,{"$f":"IF(J24=6,\"льгота\",\"\")","v":""}]
[null,null,null,null,null,null,null,null,null,{"$f":"COUNTA(C27:I27)","v":0}]
[null,null,null,null,null,null,null,null,null,{"$f":"IF(J26=6,\"льгота\",\"\")","v":""}]
[null,"Телефоны",null,null,null,null,null,null,null,{"$f":"COUNTA(C29:I29)","v":0}]
[null,null,null,null,null,null,null,null,null,{"$f":"IF(J28=6,\"льгота\",\"\")","v":""}]
[null,null,null,null,null,null,null,null,null,{"$f":"COUNTA(C31:I31)","v":0}]
[null,null,null,null,null,null,null,null,null,{"$f":"IF(J30=6,\"льгота\",\"\")","v":""}]
[null,null,null,null,null,null,null,null,null,{"$f":"COUNTA(C33:I33)","v":0}]
[null,null,null,null,null,null,null,null,null,{"$f":"IF(J32=6,\"льгота\",\"\")","v":""}]
[null,null,null,null,null,null,null,null,null,{"$f":"COUNTA(C35:I35)","v":0}]
[null,null,null,null,null,null,null,null,null,{"$f":"IF(J34=6,\"льгота\",\"\")","v":""}]
[null,null,null,null,null,null,null,null,null,{"$f":"COUNTA(C37:I37)","v":0}]
[null,null,null,null,null,null,null,null,null,{"$f":"IF(J36=6,\"льгота\",\"\")","v":""}]
[]
[null,"№ карты","Дата поездки                                                                                           № машины",null,null,null,null,null,null,"Кол-во  поездок"]
[]
[null,3,null,null,null,null,null,null,null,{"$f":"COUNTA(C42:I42)","v":0}]
[null,null,null,null,null,null,null,null,null,{"$f":"IF(J41=6,\"льгота\",\"\")","v":""}]
[null,"Имя владельца",null,null,null,null,null,null,null,{"$f":"COUNTA(C44:I44)","v":0}]
[null,null,null,null,null,null,null,null,null,{"$f":"IF(J43=6,\"льгота\",\"\")","v":""}]
[null,null,null,null,null,null,null,null,null,{"$f":"COUNTA(C46:I46)","v":0}]
[null,null,null,null,null,null,null,null,null,{"$f":"IF(J45=6,\"льгота\",\"\")","v":""}]
[null,"Телефоны",null,null,null,null,null,null,null,{"$f":"COUNTA(C48:I48)","v":0}]
[null,null,null,null,null,null,null,null,null,{"$f":"IF(J47=6,\"льгота\",\"\")","v":""}]
[null,null,null,null,null,null,null,null,null,{"$f":"COUNTA(C50:I50)","v":0}]
[null,null,null,null,null,null,null,null,null,{"$f":"IF(J49=6,\"льгота\",\"\")","v":""}]
[null,null,null,null,null,null,null,null,null,{"$f":"COUNTA(C52:I52)","v":0}]
[null,null,null,null,null,null,null,null,null,{"$f":"IF(J51=6,\"льгота\",\"\")","v":""}]
[null,null,null,null,null,null,null,null,null,{"$f":"COUNTA(C54:I54)","v":0}]
[null,null,null,null,null,null,null,null,null,{"$f":"IF(J53=6,\"льгота\",\"\")","v":""}]
[null,null,null,null,null,null,null,null,null,{"$f":"COUNTA(C56:I56)","v":0}]
[null,null,null,null,null,null,null,null,null,{"$f":"IF(J55=6,\"льгота\",\"\")","v":""}]
[]
[null,"№ карты","Дата поездки                                                                                           № машины",null,null,null,null,null,null,"Кол-во  поездок"]
[]
[null,4,null,null,null,null,null,null,null,{"$f":"COUNTA(C61:I61)","v":0}]
[null,null,null,null,null,null,null,null,null,{"$f":"IF(J60=6,\"льгота\",\"\")","v":""}]
[null,"Имя владельца",null,null,null,null,null,null,null,{"$f":"COUNTA(C63:I63)","v":0}]
[null,null,null,null,null,null,null,null,null,{"$f":"IF(J62=6,\"льгота\",\"\")","v":""}]
[null,null,null,null,null,null,null,null,null,{"$f":"COUNTA(C65:I65)","v":0}]
[null,null,null,null,null,null,null,null,null,{"$f":"IF(J64=6,\"льгота\",\"\")","v":""}]
[null,"Телефоны",null,null,null,null,null,null,null,{"$f":"COUNTA(C67:I67)","v":0}]
[null,null,null,null,null,null,null,null,null,{"$f":"IF(J66=6,\"льгота\",\"\")","v":""}]
[null,null,null,null,null,null,null,null,null,{"$f":"COUNTA(C69:I69)","v":0}]
[null,null,null,null,null,null,null,null,null,{"$f":"IF(J68=6,\"льгота\",\"\")","v":""}]
[null,null,null,null,null,null,null,null,null,{"$f":"COUNTA(C71:I71)","v":0}]
[null,null,null,null,null,null,null,null,null,{"$f":"IF(J70=6,\"льгота\",\"\")","v":""}]
[null,null,null,null,null,null,null,null,null,{"$f":"COUNTA(C73:I73)","v":0}]
[null,null,null,null,null,null,null,null,null,{"$f":"IF(J72=6,\"льгота\",\"\")","v":""}]
[null,null,null,null,null,null,null,null,null,{"$f":"COUNTA(C75:I75)","v":0}]
[null,null,null,null,null,null,null,null,null,{"$f":"IF(J74=6,\"льгота\",\"\")","v":""}]
[]
[null,"№ карты","Дата поездки                                                                                           № машины",null,null,null,null,null,null,"Кол-во  поездок"]
[]
[null,5,null,null,null,null,null,null,null,{"$f":"COUNTA(C80:I80)","v":0}]
[null,null,null,null,null,null,null,null,null,{"$f":"IF(J79=6,\"льгота\",\"\")","v":""}]
[null,"Имя владельца",null,null,null,null,null,null,null,{"$f":"COUNTA(C82:I82)","v":0}]
[null,null,null,null,null,null,null,null,null,{"$f":"IF(J81=6,\"льгота\",\"\")","v":""}]
[null,null,null,null,null,null,null,null,null,{"$f":"COUNTA(C84:I84)","v":0}]
[null,null,null,null,null,null,null,null,null,{"$f":"IF(J83=6,\"льгота\",\"\")","v":""}]
[null,"Телефоны",null,null,null,null,null,null,null,{"$f":"COUNTA(C86:I86)","v":0}]
[null,null,null,null,null,null,null,null,null,{"$f":"IF(J85=6,\"льгота\",\"\")","v":""}]
[null,null,null,null,null,null,null,null,null,{"$f":"COUNTA(C88:I88)","v":0}]
[null,null,null,null,null,null,null,null,null,{"$f":"IF(J87=6,\"льгота\",\"\")","v":""}]
[null,null,null,null,null,null,null,null,null,{"$f":"COUNTA(C90:I90)","v":0}]
[null,null,null,null,null,null,null,null,null,{"$f":"IF(J89=6,\"льгота\",\"\")","v":""}]
[null,null,null,null,null,null,null,null,null,{"$f":"COUNTA(C92:I92)","v":0}]
[null,null,null,null,null,null,null,null,null,{"$f":"IF(J91=6,\"льгота\",\"\")","v":""}]
[null,null,null,null,null,null,null,null,null,{"$f":"COUNTA(C94:I94)","v":0}]
[null,null,null,null,null,null,null,null,null,{"$f":"IF(J93=6,\"льгота\",\"\")","v":""}]
[]
[null,"№ карты","Дата поездки                                                                                           № машины",null,null,null,null,null,null,"Кол-во  поездок"]
[]
[null,6,null,null,null,null,null,null,null,{"$f":"COUNTA(C99:I99)","v":0}]
[null,null,null,null,null,null,null,null,null,{"$f":"IF(J98=6,\"льгота\",\"\")","v":""}]
[null,"Имя владельца",null,null,null,null,null,null,null,{"$f":"COUNTA(C101:I101)","v":0}]
[null,null,null,null,null,null,null,null,null,{"$f":"IF(J100=6,\"льгота\",\"\")","v":""}]
[null,null,null,null,null,null,null,null,null,{"$f":"COUNTA(C103:I103)","v":0}]
[null,null,null,null,null,null,null,null,null,{"$f":"IF(J102=6,\"льгота\",\"\")","v":""}]
[null,"Телефоны",null,null,null,null,null,null,null,{"$f":"COUNTA(C105:I105)","v":0}]
[null,null,null,null,null,null,null,null,null,{"$f":"IF(J104=6,\"льгота\",\"\")","v":""}]
[null,null,null,null,null,null,null,null,null,{"$f":"COUNTA(C107:I107)","v":0}]
[null,null,null,null,null,null,null,null,null,{"$f":"IF(J106=6,\"льгота\",\"\")","v":""}]
[null,null,null,null,null,null,null,null,null,{"$f":"COUNTA(C109:I109)","v":0}]
[null,null,null,null,null,null,null,null,null,{"$f":"IF(J108=6,\"льгота\",\"\")","v":""}]
[null,null,null,null,null,null,null,null,null,{"$f":"COUNTA(C111:I111)","v":0}]
[null,null,null,null,null,null,null,null,null,{"$f":"IF(J110=6,\"льгота\",\"\")","v":""}]
[null,null,null,null,null,null,null,null,null,{"$f":"COUNTA(C113:I113)","v":0}]
[null,null,null,null,null,null,null,null,null,{"$f":"IF(J112=6,\"льгота\",\"\")","v":""}]
[]
[null,"№ карты","Дата поездки                                                                                           № машины",null,null,null,null,null,null,"Кол-во  поездок"]
[]
[null,7,null,null,null,null,null,null,null,{"$f":"COUNTA(C118:I118)","v":0}]
[null,null,null,null,null,null,null,null,null,{"$f":"IF(J117=6,\"льгота\",\"\")","v":""}]
[null,"Имя владельца",null,null,null,null,null,null,null,{"$f":"COUNTA(C120:I120)","v":0}]
[null,null,null,null,null,null,null,null,null,{"$f":"IF(J119=6,\"льгота\",\"\")","v":""}]
[null,null,null,null,null,null,null,null,null,{"$f":"COUNTA(C122:I122)","v":0}]
[null,null,null,null,null,null,null,null,null,{"$f":"IF(J121=6,\"льгота\",\"\")","v":""}]
[null,"Телефоны",null,null,null,null,null,null,null,{"$f":"COUNTA(C124:I124)","v":0}]
[null,null,null,null,null,null,null,null,null,{"$f":"IF(J123=6,\"льгота\",\"\")","v":""}]
[null,null,null,null,null,null,null,null,null,{"$f":"COUNTA(C126:I126)","v":0}]
[null,null,null,null,null,null,null,null,null,{"$f":"IF(J125=6,\"льгота\",\"\")","v":""}]
[null,null,null,null,null,null,null,null,null,{"$f":"COUNTA(C128:I128)","v":0}]
[null,null,null,null,null,null,null,null,null,{"$f":"IF(J127=6,\"льгота\",\"\")","v":""}]
[null,null,null,null,null,null,null,null,null,{"$f":"COUNTA(C130:I130)","v":0}]
[null,null,null,null,null,null,null,null,null,{"$f":"IF(J129=6,\"льгота\",\"\")","v":""}]
[null,null,null,null,null,null,null,null,null,{"$f":"COUNTA(C132:I132)","v":0}]
[null,null,null,null,null,null,null,null,null,{"$f":"IF(J131=6,\"льгота\",\"\")","v":""}]
[]
[null,"№ карты","Дата поездки                                                                                           № машины",null,null,null,null,null,null,"Кол-во  поездок"]
[]
[null,8,null,null,null,null,null,null,null,{"$f":"COUNTA(C137:I137)","v":0}]
[null,null,null,null,null,null,null,null,null,{"$f":"IF(J136=6,\"льгота\",\"\")","v":""}]
[null,"Имя владельца",null,null,null,null,null,null,null,{"$f":"COUNTA(C139:I139)","v":0}]
[null,null,null,null,null,null,null,null,null,{"$f":"IF(J138=6,\"льгота\",\"\")","v":""}]
[null,null,null,null,null,null,null,null,null,{"$f":"COUNTA(C141:I141)","v":0}]
[null,null,null,null,null,null,null,null,null,{"$f":"IF(J140=6,\"льгота\",\"\")","v":""}]
[null,"Телефоны",null,null,null,null,null,null,null,{"$f":"COUNTA(C143:I143)","v":0}]
[null,null,null,null,null,null,null,null,null,{"$f":"IF(J142=6,\"льгота\",\"\")","v":""}]
[null,null,null,null,null,null,null,null,null,{"$f":"COUNTA(C145:I145)","v":0}]
[null,null,null,null,null,null,null,null,null,{"$f":"IF(J144=6,\"льгота\",\"\")","v":""}]
[null,null,null,null,null,null,null,null,null,{"$f":"COUNTA(C147:I147)","v":0}]
[null,null,null,null,null,null,null,null,null,{"$f":"IF(J146=6,\"льгота\",\"\")","v":""}]
[null,null,null,null,null,null,null,null,null,{"$f":"COUNTA(C149:I149)","v":0}]
[null,null,null,null,null,null,null,null,null,{"$f":"IF(J148=6,\"льгота\",\"\")","v":""}]
[null,null,null,null,null,null,null,null,null,{"$f":"COUNTA(C151:I151)","v":0}]
[null,null,null,null,null,null,null,null,null,{"$f":"IF(J150=6,\"льгота\",\"\")","v":""}]
[]
[null,"№ карты","Дата поездки                                                                                           № машины",null,null,null,null,null,null,"Кол-во  поездок"]
[]
[null,9,null,null,null,null,null,null,null,{"$f":"COUNTA(C156:I156)","v":0}]
[null,null,null,null,null,null,null,null,null,{"$f":"IF(J155=6,\"льгота\",\"\")","v":""}]
[null,"Имя владельца",null,null,null,null,null,null,null,{"$f":"COUNTA(C158:I158)","v":0}]
[null,null,null,null,null,null,null,null,null,{"$f":"IF(J157=6,\"льгота\",\"\")","v":""}]
[null,null,null,null,null,null,null,null,null,{"$f":"COUNTA(C160:I160)","v":0}]
[null,null,null,null,null,null,null,null,null,{"$f":"IF(J159=6,\"льгота\",\"\")","v":""}]
[null,"Телефоны",null,null,null,null,null,null,null,{"$f":"COUNTA(C162:I162)","v":0}]
[null,null,null,null,null,null,null,null,null,{"$f":"IF(J161=6,\"льгота\",\"\")","v":""}]
[null,null,null,null,null,null,null,null,null,{"$f":"COUNTA(C164:I164)","v":0}]
[null,null,null,null,null,null,null,null,null,{"$f":"IF(J163=6,\"льгота\",\"\")","v":""}]
[null,null,null,null,null,null,null,null,null,{"$f":"COUNTA(C166:I166)","v":0}]
[null,null,null,null,null,null,null,null,null,{"$f":"IF(J165=6,\"льгота\",\"\")","v":""}]
[null,null,null,null,null,null,null,null,null,{"$f":"COUNTA(C168:I168)","v":0}]
[null,null,null,null,null,null,null,null,null,{"$f":"IF(J167=6,\"льгота\",\"\")","v":""}]
[null,null,null,null,null,null,null,null,null,{"$f":"COUNTA(C170:I170)","v":0}]
[null,null,null,null,null,null,null,null,null,{"$f":"IF(J169=6,\"льгота\",\"\")","v":""}]
[]
[null,"№ карты","Дата поездки                                                                                           № машины",null,null,null,null,null,null,"Кол-во  поездок"]
[]
[null,10,null,null,null,null,null,null,null,{"$f":"COUNTA(C175:I175)","v":0}]
[null,null,null,null,null,null,null,null,null,{"$f":"IF(J174=6,\"льгота\",\"\")","v":""}]
[null,"Имя владельца",null,null,null,null,null,null,null,{"$f":"COUNTA(C177:I177)","v":0}]
[null,null,null,null,null,null,null,null,null,{"$f":"IF(J176=6,\"льгота\",\"\")","v":""}]
[null,null,null,null,null,null,null,null,null,{"$f":"COUNTA(C179:I179)","v":0}]
[null,null,null,null,null,null,null,null,null,{"$f":"IF(J178=6,\"льгота\",\"\")","v":""}]
[null,"Телефоны",null,null,null,null,null,null,null,{"$f":"COUNTA(C181:I181)","v":0}]
[null,null,null,null,null,null,null,null,null,{"$f":"IF(J180=6,\"льгота\",\"\")","v":""}]
[null,null,null,null,null,null,null,null,null,{"$f":"COUNTA(C183:I183)","v":0}]
[null,null,null,null,null,null,null,null,null,{"$f":"IF(J182=6,\"льгота\",\"\")","v":""}]
[null,null,null,null,null,null,null,null,null,{"$f":"COUNTA(C185:I185)","v":0}]
[null,null,null,null,null,null,null,null,null,{"$f":"IF(J184=6,\"льгота\",\"\")","v":""}]
[null,null,null,null,null,null,null,null,null,{"$f":"COUNTA(C187:I187)","v":0}]
[null,null,null,null,null,null,null,null,null,{"$f":"IF(J186=6,\"льгота\",\"\")","v":""}]
[null,null,null,null,null,null,null,null,null,{"$f":"COUNTA(C189:I189)","v":0}]
[null,null,null,null,null,null,null,null,null,{"$f":"IF(J188=6,\"льгота\",\"\")","v":""}]
[]
[null,"№ карты","Дата поездки                                                                                           № машины",null,null,null,null,null,null,"Кол-во  поездок"]
[]
[null,11,null,null,null,null,null,null,null,{"$f":"COUNTA(C194:I194)","v":0}]
[null,null,null,null,null,null,null,null,null,{"$f":"IF(J193=6,\"льгота\",\"\")","v":""}]
[null,"Имя владельца",null,null,null,null,null,null,null,{"$f":"COUNTA(C196:I196)","v":0}]
[null,null,null,null,null,null,null,null,null,{"$f":"IF(J195=6,\"льгота\",\"\")","v":""}]
[null,null,null,null,null,null,null,null,null,{"$f":"COUNTA(C198:I198)","v":0}]
[null,null,null,null,null,null,null,null,null,{"$f":"IF(J197=6,\"льгота\",\"\")","v":""}]
[null,"Телефоны",null,null,null,null,null,null,null,{"$f":"COUNTA(C200:I200)","v":0}]
[null,null,null,null,null,null,null,null,null,{"$f":"IF(J199=6,\"льгота\",\"\")","v":""}]
[null,null,null,null,null,null,null,null,null,{"$f":"COUNTA(C202:I202)","v":0}]
[null,null,null,null,null,null,null,null,null,{"$f":"IF(J201=6,\"льгота\",\"\")","v":""}]
[null,null,null,null,null,null,null,null,null,{"$f":"COUNTA(C204:I204)","v":0}]
[null,null,null,null,null,null,null,null,null,{"$f":"IF(J203=6,\"льгота\",\"\")","v":""}]
[null,null,null,null,null,null,null,null,null,{"$f":"COUNTA(C206:I206)","v":0}]
[null,null,null,null,null,null,null,null,null,{"$f":"IF(J205=6,\"льгота\",\"\")","v":""}]
[null,null,null,null,null,null,null,null,null,{"$f":"COUNTA(C208:I208)","v":0}]
[null,null,null,null,null,null,null,null,null,{"$f":"IF(J207=6,\"льгота\",\"\")","v":""}]
[]
[null,"№ карты","Дата поездки                                                                                           № машины",null,null,null,null,null,null,"Кол-во  поездок"]
[]
[null,12,null,null,null,null,null,null,null,{"$f":"COUNTA(C213:I213)","v":0}]
[null,null,null,null,null,null,null,null,null,{"$f":"IF(J212=6,\"льгота\",\"\")","v":""}]
[null,"Имя владельца",null,null,null,null,null,null,null,{"$f":"COUNTA(C215:I215)","v":0}]
[null,null,null,null,null,null,null,null,null,{"$f":"IF(J214=6,\"льгота\",\"\")","v":""}]
[null,null,null,null,null,null,null,null,null,{"$f":"COUNTA(C217:I217)","v":0}]
[null,null,null,null,null,null,null,null,null,{"$f":"IF(J216=6,\"льгота\",\"\")","v":""}]
[null,"Телефоны",null,null,null,null,null,null,null,{"$f":"COUNTA(C219:I219)","v":0}]
[null,null,null,null,null,null,null,null,null,{"$f":"IF(J218=6,\"льгота\",\"\")","v":""}]
[null,null,null,null,null,null,null,null,null,{"$f":"COUNTA(C221:I221)","v":0}]
[null,null,null,null,null,null,null,null,null,{"$f":"IF(J220=6,\"льгота\",\"\")","v":""}]
[null,null,null,null,null,null,null,null,null,{"$f":"COUNTA(C223:I223)","v":0}]
[null,null,null,null,null,null,null,null,null,{"$f":"IF(J222=6,\"льгота\",\"\")","v":""}]
[null,null,null,null,null,null,null,null,null,{"$f":"COUNTA(C225:I225)","v":0}]
[null,null,null,null,null,null,null,null,null,{"$f":"IF(J224=6,\"льгота\",\"\")","v":""}]
[null,null,null,null,null,null,null,null,null,{"$f":"COUNTA(C227:I227)","v":0}]
[null,null,null,null,null,null,null,null,null,{"$f":"IF(J226=6,\"льгота\",\"\")","v":""}]
[]
[null,"№ карты","Дата поездки                                                                                           № машины",null,null,null,null,null,null,"Кол-во  поездок"]
[]
[null,13,null,null,null,null,null,null,null,{"$f":"COUNTA(C232:I232)","v":0}]
[null,null,null,null,null,null,null,null,null,{"$f":"IF(J231=6,\"льгота\",\"\")","v":""}]
[null,"Имя владельца",null,null,null,null,null,null,null,{"$f":"COUNTA(C234:I234)","v":0}]
[null,null,null,null,null,null,null,null,null,{"$f":"IF(J233=6,\"льгота\",\"\")","v":""}]
[null,null,null,null,null,null,null,null,null,{"$f":"COUNTA(C236:I236)","v":0}]
[null,null,null,null,null,null,null,null,null,{"$f":"IF(J235=6,\"льгота\",\"\")","v":""}]
[null,"Телефоны",null,null,null,null,null,null,null,{"$f":"COUNTA(C238:I238)","v":0}]
[null,null,null,null,null,null,null,null,null,{"$f":"IF(J237=6,\"льгота\",\"\")","v":""}]
[null,null,null,null,null,null,null,null,null,{"$f":"COUNTA(C240:I240)","v":0}]
[null,null,null,null,null,null,null,null,null,{"$f":"IF(J239=6,\"льгота\",\"\")","v":""}]
[null,null,null,null,null,null,null,null,null,{"$f":"COUNTA(C242:I242)","v":0}]
[null,null,null,null,null,null,null,null,null,{"$f":"IF(J241=6,\"льгота\",\"\")","v":""}]
[null,null,null,null,null,null,null,null,null,{"$f":"COUNTA(C244:I244)","v":0}]
[null,null,null,null,null,null,null,null,null,{"$f":"IF(J243=6,\"льгота\",\"\")","v":""}]
[null,null,null,null,null,null,null,null,null,{"$f":"COUNTA(C246:I246)","v":0}]
[null,null,null,null,null,null,null,null,null,{"$f":"IF(J245=6,\"льгота\",\"\")","v":""}]
[]
[null,"№ карты","Дата поездки                                                                                           № машины",null,null,null,null,null,null,"Кол-во  поездок"]
[]
[null,14,null,null,null,null,null,null,null,{"$f":"COUNTA(C251:I251)","v":0}]
[null,null,null,null,null,null,null,null,null,{"$f":"IF(J250=6,\"льгота\",\"\")","v":""}]
[null,"Имя владельца",null,null,null,null,null,null,null,{"$f":"COUNTA(C253:I253)","v":0}]
[null,null,null,null,null,null,null,null,null,{"$f":"IF(J252=6,\"льгота\",\"\")","v":""}]
[null,null,null,null,null,null,null,null,null,{"$f":"COUNTA(C255:I255)","v":0}]
[null,null,null,null,null,null,null,null,null,{"$f":"IF(J254=6,\"льгота\",\"\")","v":""}]
[null,"Телефоны",null,null,null,null,null,null,null,{"$f":"COUNTA(C257:I257)","v":0}]
[null,null,null,null,null,null,null,null,null,{"$f":"IF(J256=6,\"льгота\",\"\")","v":""}]
[null,null,null,null,null,null,null,null,null,{"$f":"COUNTA(C259:I259)","v":0}]
[null,null,null,null,null,null,null,null,null,{"$f":"IF(J258=6,\"льгота\",\"\")","v":""}]
[null,null,null,null,null,null,null,null,null,{"$f":"COUNTA(C261:I261)","v":0}]
[null,null,null,null,null,null,null,null,null,{"$f":"IF(J260=6,\"льгота\",\"\")","v":""}]
[null,null,null,null,null,null,null,null,null,{"$f":"COUNTA(C263:I263)","v":0}]
[null,null,null,null,null,null,null,null,null,{"$f":"IF(J262=6,\"льгота\",\"\")","v":""}]
[null,null,null,null,null,null,null,null,null,{"$f":"COUNTA(C265:I265)","v":0}]
[null,null,null,null,null,null,null,null,null,{"$f":"IF(J264=6,\"льгота\",\"\")","v":""}]
[]
[null,"№ карты","Дата поездки                                                                                           № машины",null,null,null,null,null,null,"Кол-во  поездок"]
[]
[null,15,null,null,null,null,null,null,null,{"$f":"COUNTA(C270:I270)","v":0}]
[null,null,null,null,null,null,null,null,null,{"$f":"IF(J269=6,\"льгота\",\"\")","v":""}]
[null,"Имя владельца",null,null,null,null,null,null,null,{"$f":"COUNTA(C272:I272)","v":0}]
[null,null,null,null,null,null,null,null,null,{"$f":"IF(J271=6,\"льгота\",\"\")","v":""}]
[null,null,null,null,null,null,null,null,null,{"$f":"COUNTA(C274:I274)","v":0}]
[null,null,null,null,null,null,null,null,null,{"$f":"IF(J273=6,\"льгота\",\"\")","v":""}]
[null,"Телефоны",null,null,null,null,null,null,null,{"$f":"COUNTA(C276:I276)","v":0}]
[null,null,null,null,null,null,null,null,null,{"$f":"IF(J275=6,\"льгота\",\"\")","v":""}]
[null,null,null,null,null,null,null,null,null,{"$f":"COUNTA(C278:I278)","v":0}]
[null,null,null,null,null,null,null,null,null,{"$f":"IF(J277=6,\"льгота\",\"\")","v":""}]
[null,null,null,null,null,null,null,null,null,{"$f":"COUNTA(C280:I280)","v":0}]
[null,null,null,null,null,null,null,null,null,{"$f":"IF(J279=6,\"льгота\",\"\")","v":""}]
[null,null,null,null,null,null,null,null,null,{"$f":"COUNTA(C282:I282)","v":0}]
[null,null,null,null,null,null,null,null,null,{"$f":"IF(J281=6,\"льгота\",\"\")","v":""}]
[null,null,null,null,null,null,null,null,null,{"$f":"COUNTA(C284:I284)","v":0}]
[null,null,null,null,null,null,null,null,null,{"$f":"IF(J283=6,\"льгота\",\"\")","v":""}]
[]
[null,"№ карты","Дата поездки                                                                                           № машины",null,null,null,null,null,null,"Кол-во  поездок"]
[]
[null,16,null,null,null,null,null,null,null,{"$f":"COUNTA(C289:I289)","v":0}]
[null,null,null,null,null,null,null,null,null,{"$f":"IF(J288=6,\"льгота\",\"\")","v":""}]
[null,"Имя владельца",null,null,null,null,null,null,null,{"$f":"COUNTA(C291:I291)","v":0}]
[null,null,null,null,null,null,null,null,null,{"$f":"IF(J290=6,\"льгота\",\"\")","v":""}]
[null,null,null,null,null,null,null,null,null,{"$f":"COUNTA(C293:I293)","v":0}]
[null,null,null,null,null,null,null,null,null,{"$f":"IF(J292=6,\"льгота\",\"\")","v":""}]
[null,"Телефоны",null,null,null,null,null,null,null,{"$f":"COUNTA(C295:I295)","v":0}]
[null,null,null,null,null,null,null,null,null,{"$f":"IF(J294=6,\"льгота\",\"\")","v":""}]
[null,null,null,null,null,null,null,null,null,{"$f":"COUNTA(C297:I297)","v":0}]
[null,null,null,null,null,null,null,null,null,{"$f":"IF(J296=6,\"льгота\",\"\")","v":""}]
[null,null,null,null,null,null,null,null,null,{"$f":"COUNTA(C299:I299)","v":0}]
[null,null,null,null,null,null,null,null,null,{"$f":"IF(J298=6,\"льгота\",\"\")","v":""}]
[null,null,null,null,null,null,null,null,null,{"$f":"COUNTA(C301:I301)","v":0}]
[null,null,null,null,null,null,null,null,null,{"$f":"IF(J300=6,\"льгота\",\"\")","v":""}]
[null,null,null,null,null,null,null,null,null,{"$f":"COUNTA(C303:I303)","v":0}]
[null,null,null,null,null,null,null,null,null,{"$f":"IF(J302=6,\"льгота\",\"\")","v":""}]
[]
[null,"№ карты","Дата поездки                                                                                           № машины",null,null,null,null,null,null,"Кол-во  поездок"]
[]
[null,17,null,null,null,null,null,null,null,{"$f":"COUNTA(C308:I308)","v":0}]
[null,null,null,null,null,null,null,null,null,{"$f":"IF(J307=6,\"льгота\",\"\")","v":""}]
[null,"Имя владельца",null,null,null,null,null,null,null,{"$f":"COUNTA(C310:I310)","v":0}]
[null,null,null,null,null,null,null,null,null,{"$f":"IF(J309=6,\"льгота\",\"\")","v":""}]
[null,null,null,null,null,null,null,null,null,{"$f":"COUNTA(C312:I312)","v":0}]
[null,null,null,null,null,null,null,null,null,{"$f":"IF(J311=6,\"льгота\",\"\")","v":""}]
[null,"Телефоны",null,null,null,null,null,null,null,{"$f":"COUNTA(C314:I314)","v":0}]
[null,null,null,null,null,null,null,null,null,{"$f":"IF(J313=6,\"льгота\",\"\")","v":""}]
[null,null,null,null,null,null,null,null,null,{"$f":"COUNTA(C316:I316)","v":0}]
[null,null,null,null,null,null,null,null,null,{"$f":"IF(J315=6,\"льгота\",\"\")","v":""}]
[null,null,null,null,null,null,null,null,null,{"$f":"COUNTA(C318:I318)","v":0}]
[null,null,null,null,null,null,null,null,null,{"$f":"IF(J317=6,\"льгота\",\"\")","v":""}]
[null,null,null,null,null,null,null,null,null,{"$f":"COUNTA(C320:I320)","v":0}]
[null,null,null,null,null,null,null,null,null,{"$f":"IF(J319=6,\"льгота\",\"\")","v":""}]
[null,null,null,null,null,null,null,null,null,{"$f":"COUNTA(C322:I322)","v":0}]
[null,null,null,null,null,null,null,null,null,{"$f":"IF(J321=6,\"льгота\",\"\")","v":""}]
[]
[null,"№ карты","Дата поездки                                                                                           № машины",null,null,null,null,null,null,"Кол-во  поездок"]
[]
[null,18,null,null,null,null,null,null,null,{"$f":"COUNTA(C327:I327)","v":0}]
[null,null,null,null,null,null,null,null,null,{"$f":"IF(J326=6,\"льгота\",\"\")","v":""}]
[null,"Имя владельца",null,null,null,null,null,null,null,{"$f":"COUNTA(C329:I329)","v":0}]
[null,null,null,null,null,null,null,null,null,{"$f":"IF(J328=6,\"льгота\",\"\")","v":""}]
[null,null,null,null,null,null,null,null,null,{"$f":"COUNTA(C331:I331)","v":0}]
[null,null,null,null,null,null,null,null,null,{"$f":"IF(J330=6,\"льгота\",\"\")","v":""}]
[null,"Телефоны",null,null,null,null,null,null,null,{"$f":"COUNTA(C333:I333)","v":0}]
[null,null,null,null,null,null,null,null,null,{"$f":"IF(J332=6,\"льгота\",\"\")","v":""}]
[null,null,null,null,null,null,null,null,null,{"$f":"COUNTA(C335:I335)","v":0}]
[null,null,null,null,null,null,null,null,null,{"$f":"IF(J334=6,\"льгота\",\"\")","v":""}]
[null,null,null,null,null,null,null,null,null,{"$f":"COUNTA(C337:I337)","v":0}]
[null,null,null,null,null,null,null,null,null,{"$f":"IF(J336=6,\"льгота\",\"\")","v":""}]
[null,null,null,null,null,null,null,null,null,{"$f":"COUNTA(C339:I339)","v":0}]
[null,null,null,null,null,null,null,null,null,{"$f":"IF(J338=6,\"льгота\",\"\")","v":""}]
[null,null,null,null,null,null,null,null,null,{"$f":"COUNTA(C341:I341)","v":0}]
[null,null,null,null,null,null,null,null,null,{"$f":"IF(J340=6,\"льгота\",\"\")","v":""}]
[]
[null,"№ карты","Дата поездки                                                                                           № машины",null,null,null,null,null,null,"Кол-во  поездок"]
[]
[null,19,null,null,null,null,null,null,null,{"$f":"COUNTA(C346:I346)","v":0}]
[null,null,null,null,null,null,null,null,null,{"$f":"IF(J345=6,\"льгота\",\"\")","v":""}]
[null,"Имя владельца",null,null,null,null,null,null,null,{"$f":"COUNTA(C348:I348)","v":0}]
[null,null,null,null,null,null,null,null,null,{"$f":"IF(J347=6,\"льгота\",\"\")","v":""}]
[null,null,null,null,null,null,null,null,null,{"$f":"COUNTA(C350:I350)","v":0}]
[null,null,null,null,null,null,null,null,null,{"$f":"IF(J349=6,\"льгота\",\"\")","v":""}]
[null,"Телефоны",null,null,null,null,null,null,null,{"$f":"COUNTA(C352:I352)","v":0}]
[null,null,null,null,null,null,null,null,null,{"$f":"IF(J351=6,\"льгота\",\"\")","v":""}]
[null,null,null,null,null,null,null,null,null,{"$f":"COUNTA(C354:I354)","v":0}]
[null,null,null,null,null,null,null,null,null,{"$f":"IF(J353=6,\"льгота\",\"\")","v":""}]
[null,null,null,null,null,null,null,null,null,{"$f":"COUNTA(C356:I356)","v":0}]
[null,null,null,null,null,null,null,null,null,{"$f":"IF(J355=6,\"льгота\",\"\")","v":""}]
[null,null,null,null,null,null,null,null,null,{"$f":"COUNTA(C358:I358)","v":0}]
[null,null,null,null,null,null,null,null,null,{"$f":"IF(J357=6,\"льгота\",\"\")","v":""}]
[null,null,null,null,null,null,null,null,null,{"$f":"COUNTA(C360:I360)","v":0}]
[null,null,null,null,null,null,null,null,null,{"$f":"IF(J359=6,\"льгота\",\"\")","v":""}]
[]
[null,"№ карты","Дата поездки                                                                                           № машины",null,null,null,null,null,null,"Кол-во  поездок"]
[]
[null,20,null,null,null,null,null,null,null,{"$f":"COUNTA(C365:I365)","v":0}]
[null,null,null,null,null,null,null,null,null,{"$f":"IF(J364=6,\"льгота\",\"\")","v":""}]
[null,"Имя владельца",null,null,null,null,null,null,null,{"$f":"COUNTA(C367:I367)","v":0}]
[null,null,null,null,null,null,null,null,null,{"$f":"IF(J366=6,\"льгота\",\"\")","v":""}]
[null,null,null,null,null,null,null,null,null,{"$f":"COUNTA(C369:I369)","v":0}]
[null,null,null,null,null,null,null,null,null,{"$f":"IF(J368=6,\"льгота\",\"\")","v":""}]
[null,"Телефоны",null,null,null,null,null,null,null,{"$f":"COUNTA(C371:I371)","v":0}]
[null,null,null,null,null,null,null,null,null,{"$f":"IF(J370=6,\"льгота\",\"\")","v":""}]
[null,null,null,null,null,null,null,null,null,{"$f":"COUNTA(C373:I373)","v":0}]
[null,null,null,null,null,null,null,null,null,{"$f":"IF(J372=6,\"льгота\",\"\")","v":""}]
[null,null,null,null,null,null,null,null,null,{"$f":"COUNTA(C375:I375)","v":0}]
[null,null,null,null,null,null,null,null,null,{"$f":"IF(J374=6,\"льгота\",\"\")","v":""}]
[null,null,null,null,null,null,null,null,null,{"$f":"COUNTA(C377:I377)","v":0}]
[null,null,null,null,null,null,null,null,null,{"$f":"IF(J376=6,\"льгота\",\"\")","v":""}]
[null,null,null,null,null,null,null,null,null,{"$f":"COUNTA(C379:I379)","v":0}]
[null,null,null,null,null,null,null,null,null,{"$f":"IF(J378=6,\"льгота\",\"\")","v":""}]
[]
[null,"№ карты","Дата поездки                                                                                           № машины",null,null,null,null,null,null,"Кол-во  поездок"]
[]
[null,21,null,null,null,null,null,null,null,{"$f":"COUNTA(C384:I384)","v":0}]
[null,null,null,null,null,null,null,null,null,{"$f":"IF(J383=6,\"льгота\",\"\")","v":""}]
[null,"Имя владельца",null,null,null,null,null,null,null,{"$f":"COUNTA(C386:I386)","v":0}]
[null,null,null,null,null,null,null,null,null,{"$f":"IF(J385=6,\"льгота\",\"\")","v":""}]
[null,null,null,null,null,null,null,null,null,{"$f":"COUNTA(C388:I388)","v":0}]
[null,null,null,null,null,null,null,null,null,{"$f":"IF(J387=6,\"льгота\",\"\")","v":""}]
[null,"Телефоны",null,null,null,null,null,null,null,{"$f":"COUNTA(C390:I390)","v":0}]
[null,null,null,null,null,null,null,null,null,{"$f":"IF(J389=6,\"льгота\",\"\")","v":""}]
[null,null,null,null,null,null,null,null,null,{"$f":"COUNTA(C392:I392)","v":0}]
[null,null,null,null,null,null,null,null,null,{"$f":"IF(J391=6,\"льгота\",\"\")","v":""}]
[null,null,null,null,null,null,null,null,null,{"$f":"COUNTA(C394:I394)","v":0}]
[null,null,null,null,null,null,null,null,null,{"$f":"IF(J393=6,\"льгота\",\"\")","v":""}]
[null,null,null,null,null,null,null,null,null,{"$f":"COUNTA(C396:I396)","v":0}]
[null,null,null,null,null,null,null,null,null,{"$f":"IF(J395=6,\"льгота\",\"\")","v":""}]
[null,null,null,null,null,null,null,null,null,{"$f":"COUNTA(C398:I398)","v":0}]
[null,null,null,null,null,null,null,null,null,{"$f":"IF(J397=6,\"льгота\",\"\")","v":""}]
[]
[null,"№ карты","Дата поездки                                                                                           № машины",null,null,null,null,null,null,"Кол-во  поездок"]
[]
[null,22,null,null,null,null,null,null,null,{"$f":"COUNTA(C403:I403)","v":0}]
[null,null,null,null,null,null,null,null,null,{"$f":"IF(J402=6,\"льгота\",\"\")","v":""}]
[null,"Имя владельца",null,null,null,null,null,null,null,{"$f":"COUNTA(C405:I405)","v":0}]
[null,null,null,null,null,null,null,null,null,{"$f":"IF(J404=6,\"льгота\",\"\")","v":""}]
[null,null,null,null,null,null,null,null,null,{"$f":"COUNTA(C407:I407)","v":0}]
[null,null,null,null,null,null,null,null,null,{"$f":"IF(J406=6,\"льгота\",\"\")","v":""}]
[null,"Телефоны",null,null,null,null,null,null,null,{"$f":"COUNTA(C409:I409)","v":0}]
[null,null,null,null,null,null,null,null,null,{"$f":"IF(J408=6,\"льгота\",\"\")","v":""}]
[null,null,null,null,null,null,null,null,null,{"$f":"COUNTA(C411:I411)","v":0}]
[null,null,null,null,null,null,null,null,null,{"$f":"IF(J410=6,\"льгота\",\"\")","v":""}]
[null,null,null,null,null,null,null,null,null,{"$f":"COUNTA(C413:I413)","v":0}]
[null,null,null,null,null,null,null,null,null,{"$f":"IF(J412=6,\"льгота\",\"\")","v":""}]
[null,null,null,null,null,null,null,null,null,{"$f":"COUNTA(C415:I415)","v":0}]
[null,null,null,null,null,null,null,null,null,{"$f":"IF(J414=6,\"льгота\",\"\")","v":""}]
[null,null,null,null,null,null,null,null,null,{"$f":"COUNTA(C417:I417)","v":0}]
[null,null,null,null,null,null,null,null,null,{"$f":"IF(J416=6,\"льгота\",\"\")","v":""}]
[]
[null,"№ карты","Дата поездки                                                                                           № машины",null,null,null,null,null,null,"Кол-во  поездок"]
[]
[null,23,null,null,null,null,null,null,null,{"$f":"COUNTA(C422:I422)","v":0}]
[null,null,null,null,null,null,null,null,null,{"$f":"IF(J421=6,\"льгота\",\"\")","v":""}]
[null,"Имя владельца",null,null,null,null,null,null,null,{"$f":"COUNTA(C424:I424)","v":0}]
[null,null,null,null,null,null,null,null,null,{"$f":"IF(J423=6,\"льгота\",\"\")","v":""}]
[null,null,null,null,null,null,null,null,null,{"$f":"COUNTA(C426:I426)","v":0}]
[null,null,null,null,null,null,null,null,null,{"$f":"IF(J425=6,\"льгота\",\"\")","v":""}]
[null,"Телефоны",null,null,null,null,null,null,null,{"$f":"COUNTA(C428:I428)","v":0}]
[null,null,null,null,null,null,null,null,null,{"$f":"IF(J427=6,\"льгота\",\"\")","v":""}]
[null,null,null,null,null,null,null,null,null,{"$f":"COUNTA(C430:I430)","v":0}]
[null,null,null,null,null,null,null,null,null,{"$f":"IF(J429=6,\"льгота\",\"\")","v":""}]
[null,null,null,null,null,null,null,null,null,{"$f":"COUNTA(C432:I432)","v":0}]
[null,null,null,null,null,null,null,null,null,{"$f":"IF(J431=6,\"льгота\",\"\")","v":""}]
[null,null,null,null,null,null,null,null,null,{"$f":"COUNTA(C434:I434)","v":0}]
[null,null,null,null,null,null,null,null,null,{"$f":"IF(J433=6,\"льгота\",\"\")","v":""}]
[null,null,null,null,null,null,null,null,null,{"$f":"COUNTA(C436:I436)","v":0}]
[null,null,null,null,null,null,null,null,null,{"$f":"IF(J435=6,\"льгота\",\"\")","v":""}]
[]
[null,"№ карты","Дата поездки                                                                                           № машины",null,null,null,null,null,null,"Кол-во  поездок"]
[]
[null,24,null,null,null,null,null,null,null,{"$f":"COUNTA(C441:I441)","v":0}]
[null,null,null,null,null,null,null,null,null,{"$f":"IF(J440=6,\"льгота\",\"\")","v":""}]
[null,"Имя владельца",null,null,null,null,null,null,null,{"$f":"COUNTA(C443:I443)","v":0}]
[null,null,null,null,null,null,null,null,null,{"$f":"IF(J442=6,\"льгота\",\"\")","v":""}]
[null,null,null,null,null,null,null,null,null,{"$f":"COUNTA(C445:I445)","v":0}]
[null,null,null,null,null,null,null,null,null,{"$f":"IF(J444=6,\"льгота\",\"\")","v":""}]
[null,"Телефоны",null,null,null,null,null,null,null,{"$f":"COUNTA(C447:I447)","v":0}]
[null,null,null,null,null,null,null,null,null,{"$f":"IF(J446=6,\"льгота\",\"\")","v":""}]
[null,null,null,null,null,null,null,null,null,{"$f":"COUNTA(C449:I449)","v":0}]
[null,null,null,null,null,null,null,null,null,{"$f":"IF(J448=6,\"льгота\",\"\")","v":""}]
[null,null,null,null,null,null,null,null,null,{"$f":"COUNTA(C451:I451)","v":0}]
[null,null,null,null,null,null,null,null,null,{"$f":"IF(J450=6,\"льгота\",\"\")","v":""}]
[null,null,null,null,null,null,null,null,null,{"$f":"COUNTA(C453:I453)","v":0}]
[null,null,null,null,null,null,null,null,null,{"$f":"IF(J452=6,\"льгота\",\"\")","v":""}]
[null,null,null,null,null,null,null,null,null,{"$f":"COUNTA(C455:I455)","v":0}]
[null,null,null,null,null,null,null,null,null,{"$f":"IF(J454=6,\"льгота\",\"\")","v":""}]
[]
[null,"№ карты","Дата поездки                                                                                           № машины",null,null,null,null,null,null,"Кол-во  поездок"]
[]
[null,25,null,null,null,null,null,null,null,{"$f":"COUNTA(C460:I460)","v":0}]
[null,null,null,null,null,null,null,null,null,{"$f":"IF(J459=6,\"льгота\",\"\")","v":""}]
[null,"Имя владельца",null,null,null,null,null,null,null,{"$f":"COUNTA(C462:I462)","v":0}]
[null,null,null,null,null,null,null,null,null,{"$f":"IF(J461=6,\"льгота\",\"\")","v":""}]
[null,null,null,null,null,null,null,null,null,{"$f":"COUNTA(C464:I464)","v":0}]
[null,null,null,null,null,null,null,null,null,{"$f":"IF(J463=6,\"льгота\",\"\")","v":""}]
[null,"Телефоны",null,null,null,null,null,null,null,{"$f":"COUNTA(C466:I466)","v":0}]
[null,null,null,null,null,null,null,null,null,{"$f":"IF(J465=6,\"льгота\",\"\")","v":""}]
[null,null,null,null,null,null,null,null,null,{"$f":"COUNTA(C468:I468)","v":0}]
[null,null,null,null,null,null,null,null,null,{"$f":"IF(J467=6,\"льгота\",\"\")","v":""}]
[null,null,null,null,null,null,null,null,null,{"$f":"COUNTA(C470:I470)","v":0}]
[null,null,null,null,null,null,null,null,null,{"$f":"IF(J469=6,\"льгота\",\"\")","v":""}]
[null,null,null,null,null,null,null,null,null,{"$f":"COUNTA(C472:I472)","v":0}]
[null,null,null,null,null,null,null,null,null,{"$f":"IF(J471=6,\"льгота\",\"\")","v":""}]
[null,null,null,null,null,null,null,null,null,{"$f":"COUNTA(C474:I474)","v":0}]
[null,null,null,null,null,null,null,null,null,{"$f":"IF(J473=6,\"льгота\",\"\")","v":""}]
[]
[null,"№ карты","Дата поездки                                                                                           № машины",null,null,null,null,null,null,"Кол-во  поездок"]
[]
[null,26,null,null,null,null,null,null,null,{"$f":"COUNTA(C479:I479)","v":0}]
[null,null,null,null,null,null,null,null,null,{"$f":"IF(J478=6,\"льгота\",\"\")","v":""}]
[null,"Имя владельца",null,null,null,null,null,null,null,{"$f":"COUNTA(C481:I481)","v":0}]
[null,null,null,null,null,null,null,null,null,{"$f":"IF(J480=6,\"льгота\",\"\")","v":""}]
[null,null,null,null,null,null,null,null,null,{"$f":"COUNTA(C483:I483)","v":0}]
[null,null,null,null,null,null,null,null,null,{"$f":"IF(J482=6,\"льгота\",\"\")","v":""}]
[null,"Телефоны",null,null,null,null,null,null,null,{"$f":"COUNTA(C485:I485)","v":0}]
[null,null,null,null,null,null,null,null,null,{"$f":"IF(J484=6,\"льгота\",\"\")","v":""}]
[null,null,null,null,null,null,null,null,null,{"$f":"COUNTA(C487:I487)","v":0}]
[null,null,null,null,null,null,null,null,null,{"$f":"IF(J486=6,\"льгота\",\"\")","v":""}]
[null,null,null,null,null,null,null,null,null,{"$f":"COUNTA(C489:I489)","v":0}]
[null,null,null,null,null,null,null,null,null,{"$f":"IF(J488=6,\"льгота\",\"\")","v":""}]
[null,null,null,null,null,null,null,null,null,{"$f":"COUNTA(C491:I491)","v":0}]
[null,null,null,null,null,null,null,null,null,{"$f":"IF(J490=6,\"льгота\",\"\")","v":""}]
[null,null,null,null,null,null,null,null,null,{"$f":"COUNTA(C493:I493)","v":0}]
[null,null,null,null,null,null,null,null,null,{"$f":"IF(J492=6,\"льгота\",\"\")","v":""}]
[]
[null,"№ карты","Дата поездки                                                                                           № машины",null,null,null,null,null,null,"Кол-во  поездок"]
[]
[null,27,null,null,null,null,null,null,null,{"$f":"COUNTA(C498:I498)","v":0}]
[null,null,null,null,null,null,null,null,null,{"$f":"IF(J497=6,\"льгота\",\"\")","v":""}]
[null,"Имя владельца",null,null,null,null,null,null,null,{"$f":"COUNTA(C500:I500)","v":0}]
[null,null,null,null,null,null,null,null,null,{"$f":"IF(J499=6,\"льгота\",\"\")","v":""}]
[null,null,null,null,null,null,null,null,null,{"$f":"COUNTA(C502:I502)","v":0}]
[null,null,null,null,null,null,null,null,null,{"$f":"IF(J501=6,\"льгота\",\"\")","v":""}]
[null,"Телефоны",null,null,null,null,null,null,null,{"$f":"COUNTA(C504:I504)","v":0}]
[null,null,null,null,null,null,null,null,null,{"$f":"IF(J503=6,\"льгота\",\"\")","v":""}]
[null,null,null,null,null,null,null,null,null,{"$f":"COUNTA(C506:I506)","v":0}]
[null,null,null,null,null,null,null,null,null,{"$f":"IF(J505=6,\"льгота\",\"\")","v":""}]
[null,null,null,null,null,null,null,null,null,{"$f":"COUNTA(C508:I508)","v":0}]
[null,null,null,null,null,null,null,null,null,{"$f":"IF(J507=6,\"льгота\",\"\")","v":""}]
[null,null,null,null,null,null,null,null,null,{"$f":"COUNTA(C510:I510)","v":0}]
[null,null,null,null,null,null,null,null,null,{"$f":"IF(J509=6,\"льгота\",\"\")","v":""}]
[null,null,null,null,null,null,null,null,null,{"$f":"COUNTA(C512:I512)","v":0}]
[null,null,null,null,null,null,null,null,null,{"$f":"IF(J511=6,\"льгота\",\"\")","v":""}]
[]
[null,"№ карты","Дата поездки                                                                                           № машины",null,null,null,null,null,null,"Кол-во  поездок"]
[]
[null,28,null,null,null,null,null,null,null,{"$f":"COUNTA(C517:I517)","v":0}]
[null,null,null,null,null,null,null,null,null,{"$f":"IF(J516=6,\"льгота\",\"\")","v":""}]
[null,"Имя владельца",null,null,null,null,null,null,null,{"$f":"COUNTA(C519:I519)","v":0}]
[null,null,null,null,null,null,null,null,null,{"$f":"IF(J518=6,\"льгота\",\"\")","v":""}]
[null,null,null,null,null,null,null,null,null,{"$f":"COUNTA(C521:I521)","v":0}]
[null,null,null,null,null,null,null,null,null,{"$f":"IF(J520=6,\"льгота\",\"\")","v":""}]
[null,"Телефоны",null,null,null,null,null,null,null,{"$f":"COUNTA(C523:I523)","v":0}]
[null,null,null,null,null,null,null,null,null,{"$f":"IF(J522=6,\"льгота\",\"\")","v":""}]
[null,null,null,null,null,null,null,null,null,{"$f":"COUNTA(C525:I525)","v":0}]
[null,null,null,null,null,null,null,null,null,{"$f":"IF(J524=6,\"льгота\",\"\")","v":""}]
[null,null,null,null,null,null,null,null,null,{"$f":"COUNTA(C527:I527)","v":0}]
[null,null,null,null,null,null,null,null,null,{"$f":"IF(J526=6,\"льгота\",\"\")","v":""}]
[null,null,null,null,null,null,null,null,null,{"$f":"COUNTA(C529:I529)","v":0}]
[null,null,null,null,null,null,null,null,null,{"$f":"IF(J528=6,\"льгота\",\"\")","v":""}]
[null,null,null,null,null,null,null,null,null,{"$f":"COUNTA(C531:I531)","v":0}]
[null,null,null,null,null,null,null,null,null,{"$f":"IF(J530=6,\"льгота\",\"\")","v":""}]
[]
[null,"№ карты","Дата поездки                                                                                           № машины",null,null,null,null,null,null,"Кол-во  поездок"]
[]
[null,29,null,null,null,null,null,null,null,{"$f":"COUNTA(C536:I536)","v":0}]
[null,null,null,null,null,null,null,null,null,{"$f":"IF(J535=6,\"льгота\",\"\")","v":""}]
[null,"Имя владельца",null,null,null,null,null,null,null,{"$f":"COUNTA(C538:I538)","v":0}]
[null,null,null,null,null,null,null,null,null,{"$f":"IF(J537=6,\"льгота\",\"\")","v":""}]
[null,null,null,null,null,null,null,null,null,{"$f":"COUNTA(C540:I540)","v":0}]
[null,null,null,null,null,null,null,null,null,{"$f":"IF(J539=6,\"льгота\",\"\")","v":""}]
[null,"Телефоны",null,null,null,null,null,null,null,{"$f":"COUNTA(C542:I542)","v":0}]
[null,null,null,null,null,null,null,null,null,{"$f":"IF(J541=6,\"льгота\",\"\")","v":""}]
[null,null,null,null,null,null,null,null,null,{"$f":"COUNTA(C544:I544)","v":0}]
[null,null,null,null,null,null,null,null,null,{"$f":"IF(J543=6,\"льгота\",\"\")","v":""}]
[null,null,null,null,null,null,null,null,null,{"$f":"COUNTA(C546:I546)","v":0}]
[null,null,null,null,null,null,null,null,null,{"$f":"IF(J545=6,\"льгота\",\"\")","v":""}]
[null,null,null,null,null,null,null,null,null,{"$f":"COUNTA(C548:I548)","v":0}]
[null,null,null,null,null,null,null,null,null,{"$f":"IF(J547=6,\"льгота\",\"\")","v":""}]
[null,null,null,null,null,null,null,null,null,{"$f":"COUNTA(C550:I550)","v":0}]
[null,null,null,null,null,null,null,null,null,{"$f":"IF(J549=6,\"льгота\",\"\")","v":""}]
[]
[null,"№ карты","Дата поездки                                                                                           № машины",null,null,null,null,null,null,"Кол-во  поездок"]
[]
[null,30,null,null,null,null,null,null,null,{"$f":"COUNTA(C555:I555)","v":0}]
[null,null,null,null,null,null,null,null,null,{"$f":"IF(J554=6,\"льгота\",\"\")","v":""}]
[null,"Имя владельца",null,null,null,null,null,null,null,{"$f":"COUNTA(C557:I557)","v":0}]
[null,null,null,null,null,null,null,null,null,{"$f":"IF(J556=6,\"льгота\",\"\")","v":""}]
[null,null,null,null,null,null,null,null,null,{"$f":"COUNTA(C559:I559)","v":0}]
[null,null,null,null,null,null,null,null,null,{"$f":"IF(J558=6,\"льгота\",\"\")","v":""}]
[null,"Телефоны",null,null,null,null,null,null,null,{"$f":"COUNTA(C561:I561)","v":0}]
[null,null,null,null,null,null,null,null,null,{"$f":"IF(J560=6,\"льгота\",\"\")","v":""}]
[null,null,null,null,null,null,null,null,null,{"$f":"COUNTA(C563:I563)","v":0}]
[null,null,null,null,null,null,null,null,null,{"$f":"IF(J562=6,\"льгота\",\"\")","v":""}]
[null,null,null,null,null,null,null,null,null,{"$f":"COUNTA(C565:I565)","v":0}]
[null,null,null,null,null,null,null,null,null,{"$f":"IF(J564=6,\"льгота\",\"\")","v":""}]
[null,null,null,null,null,null,null,null,null,{"$f":"COUNTA(C567:I567)","v":0}]
[null,null,null,null,null,null,null,null,null,{"$f":"IF(J566=6,\"льгота\",\"\")","v":""}]
[null,null,null,null,null,null,null,null,null,{"$f":"COUNTA(C569:I569)","v":0}]
[null,null,null,null,null,null,null,null,null,{"$f":"IF(J568=6,\"льгота\",\"\")","v":""}]
[]
[null,"№ карты","Дата поездки                                                                                           № машины",null,null,null,null,null,null,"Кол-во  поездок"]
[]
[null,31,null,null,null,null,null,null,null,{"$f":"COUNTA(C574:I574)","v":0}]
[null,null,null,null,null,null,null,null,null,{"$f":"IF(J573=6,\"льгота\",\"\")","v":""}]
[null,"Имя владельца",null,null,null,null,null,null,null,{"$f":"COUNTA(C576:I576)","v":0}]
[null,null,null,null,null,null,null,null,null,{"$f":"IF(J575=6,\"льгота\",\"\")","v":""}]
[null,null,null,null,null,null,null,null,null,{"$f":"COUNTA(C578:I578)","v":0}]
[null,null,null,null,null,null,null,null,null,{"$f":"IF(J577=6,\"льгота\",\"\")","v":""}]
[null,"Телефоны",null,null,null,null,null,null,null,{"$f":"COUNTA(C580:I580)","v":0}]
[null,null,null,null,null,null,null,null,null,{"$f":"IF(J579=6,\"льгота\",\"\")","v":""}]
[null,null,null,null,null,null,null,null,null,{"$f":"COUNTA(C582:I582)","v":0}]
[null,null,null,null,null,null,null,null,null,{"$f":"IF(J581=6,\"льгота\",\"\")","v":""}]
[null,null,null,null,null,null,null,null,null,{"$f":"COUNTA(C584:I584)","v":0}]
[null,null,null,null,null,null,null,null,null,{"$f":"IF(J583=6,\"льгота\",\"\")","v":""}]
[null,null,null,null,null,null,null,null,null,{"$f":"COUNTA(C586:I586)","v":0}]
[null,null,null,null,null,null,null,null,null,{"$f":"IF(J585=6,\"льгота\",\"\")","v":""}]
[null,null,null,null,null,null,null,null,null,{"$f":"COUNTA(C588:I588)","v":0}]
[null,null,null,null,null,null,null,null,null,{"$f":"IF(J587=6,\"льгота\",\"\")","v":""}]
[]
[null,"№ карты","Дата поездки                                                                                           № машины",null,null,null,null,null,null,"Кол-во  поездок"]
[]
[null,32,null,null,null,null,null,null,null,{"$f":"COUNTA(C593:I593)","v":0}]
[null,null,null,null,null,null,null,null,null,{"$f":"IF(J592=6,\"льгота\",\"\")","v":""}]
[null,"Имя владельца",null,null,null,null,null,null,null,{"$f":"COUNTA(C595:I595)","v":0}]
[null,null,null,null,null,null,null,null,null,{"$f":"IF(J594=6,\"льгота\",\"\")","v":""}]
[null,null,null,null,null,null,null,null,null,{"$f":"COUNTA(C597:I597)","v":0}]
[null,null,null,null,null,null,null,null,null,{"$f":"IF(J596=6,\"льгота\",\"\")","v":""}]
[null,"Телефоны",null,null,null,null,null,null,null,{"$f":"COUNTA(C599:I599)","v":0}]
[null,null,null,null,null,null,null,null,null,{"$f":"IF(J598=6,\"льгота\",\"\")","v":""}]
[null,null,null,null,null,null,null,null,null,{"$f":"COUNTA(C601:I601)","v":0}]
[null,null,null,null,null,null,null,null,null,{"$f":"IF(J600=6,\"льгота\",\"\")","v":""}]
[null,null,null,null,null,null,null,null,null,{"$f":"COUNTA(C603:I603)","v":0}]
[null,null,null,null,null,null,null,null,null,{"$f":"IF(J602=6,\"льгота\",\"\")","v":""}]
[null,null,null,null,null,null,null,null,null,{"$f":"COUNTA(C605:I605)","v":0}]
[null,null,null,null,null,null,null,null,null,{"$f":"IF(J604=6,\"льгота\",\"\")","v":""}]
[null,null,null,null,null,null,null,null,null,{"$f":"COUNTA(C607:I607)","v":0}]
[null,null,null,null,null,null,null,null,null,{"$f":"IF(J606=6,\"льгота\",\"\")","v":""}]
[]
[null,"№ карты","Дата поездки                                                                                           № машины",null,null,null,null,null,null,"Кол-во  поездок"]
[]
[null,33,null,null,null,null,null,null,null,{"$f":"COUNTA(C612:I612)","v":0}]
[null,null,null,null,null,null,null,null,null,{"$f":"IF(J611=6,\"льгота\",\"\")","v":""}]
[null,"Имя владельца",null,null,null,null,null,null,null,{"$f":"COUNTA(C614:I614)","v":0}]
[null,null,null,null,null,null,null,null,null,{"$f":"IF(J613=6,\"льгота\",\"\")","v":""}]
[null,null,null,null,null,null,null,null,null,{"$f":"COUNTA(C616:I616)","v":0}]
[null,null,null,null,null,null,null,null,null,{"$f":"IF(J615=6,\"льгота\",\"\")","v":""}]
[null,"Телефоны",null,null,null,null,null,null,null,{"$f":"COUNTA(C618:I618)","v":0}]
[null,null,null,null,null,null,null,null,null,{"$f":"IF(J617=6,\"льгота\",\"\")","v":""}]
[null,null,null,null,null,null,null,null,null,{"$f":"COUNTA(C620:I620)","v":0}]
[null,null,null,null,null,null,null,null,null,{"$f":"IF(J619=6,\"льгота\",\"\")","v":""}]
[null,null,null,null,null,null,null,null,null,{"$f":"COUNTA(C622:I622)","v":0}]
[null,null,null,null,null,null,null,null,null,{"$f":"IF(J621=6,\"льгота\",\"\")","v":""}]
[null,null,null,null,null,null,null,null,null,{"$f":"COUNTA(C624:I624)","v":0}]
[null,null,null,null,null,null,null,null,null,{"$f":"IF(J623=6,\"льгота\",\"\")","v":""}]
[null,null,null,null,null,null,null,null,null,{"$f":"COUNTA(C626:I626)","v":0}]
[null,null,null,null,null,null,null,null,null,{"$f":"IF(J625=6,\"льгота\",\"\")","v":""}]
[]
[null,"№ карты","Дата поездки                                                                                           № машины",null,null,null,null,null,null,"Кол-во  поездок"]
[]
[null,34,null,null,null,null,null,null,null,{"$f":"COUNTA(C631:I631)","v":0}]
[null,null,null,null,null,null,null,null,null,{"$f":"IF(J630=6,\"льгота\",\"\")","v":""}]
[null,"Имя владельца",null,null,null,null,null,null,null,{"$f":"COUNTA(C633:I633)","v":0}]
[null,null,null,null,null,null,null,null,null,{"$f":"IF(J632=6,\"льгота\",\"\")","v":""}]
[null,null,null,null,null,null,null,null,null,{"$f":"COUNTA(C635:I635)","v":0}]
[null,null,null,null,null,null,null,null,null,{"$f":"IF(J634=6,\"льгота\",\"\")","v":""}]
[null,"Телефоны",null,null,null,null,null,null,null,{"$f":"COUNTA(C637:I637)","v":0}]
[null,null,null,null,null,null,null,null,null,{"$f":"IF(J636=6,\"льгота\",\"\")","v":""}]
[null,null,null,null,null,null,null,null,null,{"$f":"COUNTA(C639:I639)","v":0}]
[null,null,null,null,null,null,null,null,null,{"$f":"IF(J638=6,\"льгота\",\"\")","v":""}]
[null,null,null,null,null,null,null,null,null,{"$f":"COUNTA(C641:I641)","v":0}]
[null,null,null,null,null,null,null,null,null,{"$f":"IF(J640=6,\"льгота\",\"\")","v":""}]
[null,null,null,null,null,null,null,null,null,{"$f":"COUNTA(C643:I643)","v":0}]
[null,null,null,null,null,null,null,null,null,{"$f":"IF(J642=6,\"льгота\",\"\")","v":""}]
[null,null,null,null,null,null,null,null,null,{"$f":"COUNTA(C645:I645)","v":0}]
[null,null,null,null,null,null,null,null,null,{"$f":"IF(J644=6,\"льгота\",\"\")","v":""}]
[]
[null,"№ карты","Дата поездки                                                                                           № машины",null,null,null,null,null,null,"Кол-во  поездок"]
[]
[null,35,null,null,null,null,null,null,null,{"$f":"COUNTA(C650:I650)","v":0}]
[null,null,null,null,null,null,null,null,null,{"$f":"IF(J649=6,\"льгота\",\"\")","v":""}]
[null,"Имя владельца",null,null,null,null,null,null,null,{"$f":"COUNTA(C652:I652)","v":0}]
[null,null,null,null,null,null,null,null,null,{"$f":"IF(J651=6,\"льгота\",\"\")","v":""}]
[null,null,null,null,null,null,null,null,null,{"$f":"COUNTA(C654:I654)","v":0}]
[null,null,null,null,null,null,null,null,null,{"$f":"IF(J653=6,\"льгота\",\"\")","v":""}]
[null,"Телефоны",null,null,null,null,null,null,null,{"$f":"COUNTA(C656:I656)","v":0}]
[null,null,null,null,null,null,null,null,null,{"$f":"IF(J655=6,\"льгота\",\"\")","v":""}]
[null,null,null,null,null,null,null,null,null,{"$f":"COUNTA(C658:I658)","v":0}]
[null,null,null,null,null,null,null,null,null,{"$f":"IF(J657=6,\"льгота\",\"\")","v":""}]
[null,null,null,null,null,null,null,null,null,{"$f":"COUNTA(C660:I660)","v":0}]
[null,null,null,null,null,null,null,null,null,{"$f":"IF(J659=6,\"льгота\",\"\")","v":""}]
[null,null,null,null,null,null,null,null,null,{"$f":"COUNTA(C662:I662)","v":0}]
[null,null,null,null,null,null,null,null,null,{"$f":"IF(J661=6,\"льгота\",\"\")","v":""}]
[null,null,null,null,null,null,null,null,null,{"$f":"COUNTA(C664:I664)","v":0}]
[null,null,null,null,null,null,null,null,null,{"$f":"IF(J663=6,\"льгота\",\"\")","v":""}]
[]
[null,"№ карты","Дата поездки                                                                                           № машины",null,null,null,null,null,null,"Кол-во  поездок"]
[]
[null,36,null,null,null,null,null,null,null,{"$f":"COUNTA(C669:I669)","v":0}]
[null,null,null,null,null,null,null,null,null,{"$f":"IF(J668=6,\"льгота\",\"\")","v":""}]
[null,"Имя владельца",null,null,null,null,null,null,null,{"$f":"COUNTA(C671:I671)","v":0}]
[null,null,null,null,null,null,null,null,null,{"$f":"IF(J670=6,\"льгота\",\"\")","v":""}]
[null,null,null,null,null,null,null,null,null,{"$f":"COUNTA(C673:I673)","v":0}]
[null,null,null,null,null,null,null,null,null,{"$f":"IF(J672=6,\"льгота\",\"\")","v":""}]
[null,"Телефоны",null,null,null,null,null,null,null,{"$f":"COUNTA(C675:I675)","v":0}]
[null,null,null,null,null,null,null,null,null,{"$f":"IF(J674=6,\"льгота\",\"\")","v":""}]
[null,null,null,null,null,null,null,null,null,{"$f":"COUNTA(C677:I677)","v":0}]
[null,null,null,null,null,null,null,null,null,{"$f":"IF(J676=6,\"льгота\",\"\")","v":""}]
[null,null,null,null,null,null,null,null,null,{"$f":"COUNTA(C679:I679)","v":0}]
[null,null,null,null,null,null,null,null,null,{"$f":"IF(J678=6,\"льгота\",\"\")","v":""}]
[null,null,null,null,null,null,null,null,null,{"$f":"COUNTA(C681:I681)","v":0}]
[null,null,null,null,null,null,null,null,null,{"$f":"IF(J680=6,\"льгота\",\"\")","v":""}]
[null,null,null,null,null,null,null,null,null,{"$f":"COUNTA(C683:I683)","v":0}]
[null,null,null,null,null,null,null,null,null,{"$f":"IF(J682=6,\"льгота\",\"\")","v":""}]
[]
[null,"№ карты","Дата поездки                                                                                           № машины",null,null,null,null,null,null,"Кол-во  поездок"]
[]
[null,37,null,null,null,null,null,null,null,{"$f":"COUNTA(C688:I688)","v":0}]
[null,null,null,null,null,null,null,null,null,{"$f":"IF(J687=6,\"льгота\",\"\")","v":""}]
[null,"Имя владельца",null,null,null,null,null,null,null,{"$f":"COUNTA(C690:I690)","v":0}]
[null,null,null,null,null,null,null,null,null,{"$f":"IF(J689=6,\"льгота\",\"\")","v":""}]
[null,null,null,null,null,null,null,null,null,{"$f":"COUNTA(C692:I692)","v":0}]
[null,null,null,null,null,null,null,null,null,{"$f":"IF(J691=6,\"льгота\",\"\")","v":""}]
[null,"Телефоны",null,null,null,null,null,null,null,{"$f":"COUNTA(C694:I694)","v":0}]
[null,null,null,null,null,null,null,null,null,{"$f":"IF(J693=6,\"льгота\",\"\")","v":""}]
[null,null,null,null,null,null,null,null,null,{"$f":"COUNTA(C696:I696)","v":0}]
[null,null,null,null,null,null,null,null,null,{"$f":"IF(J695=6,\"льгота\",\"\")","v":""}]
[null,null,null,null,null,null,null,null,null,{"$f":"COUNTA(C698:I698)","v":0}]
[null,null,null,null,null,null,null,null,null,{"$f":"IF(J697=6,\"льгота\",\"\")","v":""}]
[null,null,null,null,null,null,null,null,null,{"$f":"COUNTA(C700:I700)","v":0}]
[null,null,null,null,null,null,null,null,null,{"$f":"IF(J699=6,\"льгота\",\"\")","v":""}]
[null,null,null,null,null,null,null,null,null,{"$f":"COUNTA(C702:I702)","v":0}]
[null,null,null,null,null,null,null,null,null,{"$f":"IF(J701=6,\"льгота\",\"\")","v":""}]
[]
[null,"№ карты","Дата поездки                                                                                           № машины",null,null,null,null,null,null,"Кол-во  поездок"]
[]
[null,38,null,null,null,null,null,null,null,{"$f":"COUNTA(C707:I707)","v":0}]
[null,null,null,null,null,null,null,null,null,{"$f":"IF(J706=6,\"льгота\",\"\")","v":""}]
[null,"Имя владельца",null,null,null,null,null,null,null,{"$f":"COUNTA(C709:I709)","v":0}]
[null,null,null,null,null,null,null,null,null,{"$f":"IF(J708=6,\"льгота\",\"\")","v":""}]
[null,null,null,null,null,null,null,null,null,{"$f":"COUNTA(C711:I711)","v":0}]
[null,null,null,null,null,null,null,null,null,{"$f":"IF(J710=6,\"льгота\",\"\")","v":""}]
[null,"Телефоны",null,null,null,null,null,null,null,{"$f":"COUNTA(C713:I713)","v":0}]
[null,null,null,null,null,null,null,null,null,{"$f":"IF(J712=6,\"льгота\",\"\")","v":""}]
[null,null,null,null,null,null,null,null,null,{"$f":"COUNTA(C715:I715)","v":0}]
[null,null,null,null,null,null,null,null,null,{"$f":"IF(J714=6,\"льгота\",\"\")","v":""}]
[null,null,null,null,null,null,null,null,null,{"$f":"COUNTA(C717:I717)","v":0}]
[null,null,null,null,null,null,null,null,null,{"$f":"IF(J716=6,\"льгота\",\"\")","v":""}]
[null,null,null,null,null,null,null,null,null,{"$f":"COUNTA(C719:I719)","v":0}]
[null,null,null,null,null,null,null,null,null,{"$f":"IF(J718=6,\"льгота\",\"\")","v":""}]
[null,null,null,null,null,null,null,null,null,{"$f":"COUNTA(C721:I721)","v":0}]
[null,null,null,null,null,null,null,null,null,{"$f":"IF(J720=6,\"льгота\",\"\")","v":""}]
[]
[null,"№ карты","Дата поездки                                                                                           № машины",null,null,null,null,null,null,"Кол-во  поездок"]
[]
[null,39,null,null,null,null,null,null,null,{"$f":"COUNTA(C726:I726)","v":0}]
[null,null,null,null,null,null,null,null,null,{"$f":"IF(J725=6,\"льгота\",\"\")","v":""}]
[null,"Имя владельца",null,null,null,null,null,null,null,{"$f":"COUNTA(C728:I728)","v":0}]
[null,null,null,null,null,null,null,null,null,{"$f":"IF(J727=6,\"льгота\",\"\")","v":""}]
[null,null,null,null,null,null,null,null,null,{"$f":"COUNTA(C730:I730)","v":0}]
[null,null,null,null,null,null,null,null,null,{"$f":"IF(J729=6,\"льгота\",\"\")","v":""}]
[null,"Телефоны",null,null,null,null,null,null,null,{"$f":"COUNTA(C732:I732)","v":0}]
[null,null,null,null,null,null,null,null,null,{"$f":"IF(J731=6,\"льгота\",\"\")","v":""}]
[null,null,null,null,null,null,null,null,null,{"$f":"COUNTA(C734:I734)","v":0}]
[null,null,null,null,null,null,null,null,null,{"$f":"IF(J733=6,\"льгота\",\"\")","v":""}]
[null,null,null,null,null,null,null,null,null,{"$f":"COUNTA(C736:I736)","v":0}]
[null,null,null,null,null,null,null,null,null,{"$f":"IF(J735=6,\"льгота\",\"\")","v":""}]
[null,null,null,null,null,null,null,null,null,{"$f":"COUNTA(C738:I738)","v":0}]
[null,null,null,null,null,null,null,null,null,{"$f":"IF(J737=6,\"льгота\",\"\")","v":""}]
[null,null,null,null,null,null,null,null,null,{"$f":"COUNTA(C740:I740)","v":0}]
[null,null,null,null,null,null,null,null,null,{"$f":"IF(J739=6,\"льгота\",\"\")","v":""}]
[]
[null,"№ карты","Дата поездки                                                                                           № машины",null,null,null,null,null,null,"Кол-во  поездок"]
[]
[null,40,null,null,null,null,null,null,null,{"$f":"COUNTA(C745:I745)","v":0}]
[null,null,null,null,null,null,null,null,null,{"$f":"IF(J744=6,\"льгота\",\"\")","v":""}]
[null,"Имя владельца",null,null,null,null,null,null,null,{"$f":"COUNTA(C747:I747)","v":0}]
[null,null,null,null,null,null,null,null,null,{"$f":"IF(J746=6,\"льгота\",\"\")","v":""}]
[null,null,null,null,null,null,null,null,null,{"$f":"COUNTA(C749:I749)","v":0}]
[null,null,null,null,null,null,null,null,null,{"$f":"IF(J748=6,\"льгота\",\"\")","v":""}]
[null,"Телефоны",null,null,null,null,null,null,null,{"$f":"COUNTA(C751:I751)","v":0}]
[null,null,null,null,null,null,null,null,null,{"$f":"IF(J750=6,\"льгота\",\"\")","v":""}]
[null,null,null,null,null,null,null,null,null,{"$f":"COUNTA(C753:I753)","v":0}]
[null,null,null,null,null,null,null,null,null,{"$f":"IF(J752=6,\"льгота\",\"\")","v":""}]
[null,null,null,null,null,null,null,null,null,{"$f":"COUNTA(C755:I755)","v":0}]
[null,null,null,null,null,null,null,null,null,{"$f":"IF(J754=6,\"льгота\",\"\")","v":""}]
[null,null,null,null,null,null,null,null,null,{"$f":"COUNTA(C757:I757)","v":0}]
[null,null,null,null,null,null,null,null,null,{"$f":"IF(J756=6,\"льгота\",\"\")","v":""}]
[null,null,null,null,null,null,null,null,null,{"$f":"COUNTA(C759:I759)","v":0}]
[null,null,null,null,null,null,null,null,null,{"$f":"IF(J758=6,\"льгота\",\"\")","v":""}]
[]
[null,"№ карты","Дата поездки                                                                                           № машины",null,null,null,null,null,null,"Кол-во  поездок"]
[]
[null,41,null,null,null,null,null,null,null,{"$f":"COUNTA(C764:I764)","v":0}]
[null,null,null,null,null,null,null,null,null,{"$f":"IF(J763=6,\"льгота\",\"\")","v":""}]
[null,"Имя владельца",null,null,null,null,null,null,null,{"$f":"COUNTA(C766:I766)","v":0}]
[null,null,null,null,null,null,null,null,null,{"$f":"IF(J765=6,\"льгота\",\"\")","v":""}]
[null,null,null,null,null,null,null,null,null,{"$f":"COUNTA(C768:I768)","v":0}]
[null,null,null,null,null,null,null,null,null,{"$f":"IF(J767=6,\"льгота\",\"\")","v":""}]
[null,"Телефоны",null,null,null,null,null,null,null,{"$f":"COUNTA(C770:I770)","v":0}]
[null,null,null,null,null,null,null,null,null,{"$f":"IF(J769=6,\"льгота\",\"\")","v":""}]
[null,null,null,null,null,null,null,null,null,{"$f":"COUNTA(C772:I772)","v":0}]
[null,null,null,null,null,null,null,null,null,{"$f":"IF(J771=6,\"льгота\",\"\")","v":""}]
[null,null,null,null,null,null,null,null,null,{"$f":"COUNTA(C774:I774)","v":0}]
[null,null,null,null,null,null,null,null,null,{"$f":"IF(J773=6,\"льгота\",\"\")","v":""}]
[null,null,null,null,null,null,null,null,null,{"$f":"COUNTA(C776:I776)","v":0}]
[null,null,null,null,null,null,null,null,null,{"$f":"IF(J775=6,\"льгота\",\"\")","v":""}]
[null,null,null,null,null,null,null,null,null,{"$f":"COUNTA(C778:I778)","v":0}]
[null,null,null,null,null,null,null,null,null,{"$f":"IF(J777=6,\"льгота\",\"\")","v":""}]
[]
[null,"№ карты","Дата поездки                                                                                           № машины",null,null,null,null,null,null,"Кол-во  поездок"]
[]
[null,42,null,null,null,null,null,null,null,{"$f":"COUNTA(C783:I783)","v":0}]
[null,null,null,null,null,null,null,null,null,{"$f":"IF(J782=6,\"льгота\",\"\")","v":""}]
[null,"Имя владельца",null,null,null,null,null,null,null,{"$f":"COUNTA(C785:I785)","v":0}]
[null,null,null,null,null,null,null,null,null,{"$f":"IF(J784=6,\"льгота\",\"\")","v":""}]
[null,null,null,null,null,null,null,null,null,{"$f":"COUNTA(C787:I787)","v":0}]
[null,null,null,null,null,null,null,null,null,{"$f":"IF(J786=6,\"льгота\",\"\")","v":""}]
[null,"Телефоны",null,null,null,null,null,null,null,{"$f":"COUNTA(C789:I789)","v":0}]
[null,null,null,null,null,null,null,null,null,{"$f":"IF(J788=6,\"льгота\",\"\")","v":""}]
[null,null,null,null,null,null,null,null,null,{"$f":"COUNTA(C791:I791)","v":0}]
[null,null,null,null,null,null,null,null,null,{"$f":"IF(J790=6,\"льгота\",\"\")","v":""}]
[null,null,null,null,null,null,null,null,null,{"$f":"COUNTA(C793:I793)","v":0}]
[null,null,null,null,null,null,null,null,null,{"$f":"IF(J792=6,\"льгота\",\"\")","v":""}]
[null,null,null,null,null,null,null,null,null,{"$f":"COUNTA(C795:I795)","v":0}]
[null,null,null,null,null,null,null,null,null,{"$f":"IF(J794=6,\"льгота\",\"\")","v":""}]
[null,null,null,null,null,null,null,null,null,{"$f":"COUNTA(C797:I797)","v":0}]
[null,null,null,null,null,null,null,null,null,{"$f":"IF(J796=6,\"льгота\",\"\")","v":""}]
[]
[null,"№ карты","Дата поездки                                                                                           № машины",null,null,null,null,null,null,"Кол-во  поездок"]
[]
[null,43,null,null,null,null,null,null,null,{"$f":"COUNTA(C802:I802)","v":0}]
[null,null,null,null,null,null,null,null,null,{"$f":"IF(J801=6,\"льгота\",\"\")","v":""}]
[null,"Имя владельца",null,null,null,null,null,null,null,{"$f":"COUNTA(C804:I804)","v":0}]
[null,null,null,null,null,null,null,null,null,{"$f":"IF(J803=6,\"льгота\",\"\")","v":""}]
[null,null,null,null,null,null,null,null,null,{"$f":"COUNTA(C806:I806)","v":0}]
[null,null,null,null,null,null,null,null,null,{"$f":"IF(J805=6,\"льгота\",\"\")","v":""}]
[null,"Телефоны",null,null,null,null,null,null,null,{"$f":"COUNTA(C808:I808)","v":0}]
[null,null,null,null,null,null,null,null,null,{"$f":"IF(J807=6,\"льгота\",\"\")","v":""}]
[null,null,null,null,null,null,null,null,null,{"$f":"COUNTA(C810:I810)","v":0}]
[null,null,null,null,null,null,null,null,null,{"$f":"IF(J809=6,\"льгота\",\"\")","v":""}]
[null,null,null,null,null,null,null,null,null,{"$f":"COUNTA(C812:I812)","v":0}]
[null,null,null,null,null,null,null,null,null,{"$f":"IF(J811=6,\"льгота\",\"\")","v":""}]
[null,null,null,null,null,null,null,null,null,{"$f":"COUNTA(C814:I814)","v":0}]
[null,null,null,null,null,null,null,null,null,{"$f":"IF(J813=6,\"льгота\",\"\")","v":""}]
[null,null,null,null,null,null,null,null,null,{"$f":"COUNTA(C816:I816)","v":0}]
[null,null,null,null,null,null,null,null,null,{"$f":"IF(J815=6,\"льгота\",\"\")","v":""}]
[]
[null,"№ карты","Дата поездки                                                                                           № машины",null,null,null,null,null,null,"Кол-во  поездок"]
[]
[null,44,null,null,null,null,null,null,null,{"$f":"COUNTA(C821:I821)","v":0}]
[null,null,null,null,null,null,null,null,null,{"$f":"IF(J820=6,\"льгота\",\"\")","v":""}]
[null,"Имя владельца",null,null,null,null,null,null,null,{"$f":"COUNTA(C823:I823)","v":0}]
[null,null,null,null,null,null,null,null,null,{"$f":"IF(J822=6,\"льгота\",\"\")","v":""}]
[null,null,null,null,null,null,null,null,null,{"$f":"COUNTA(C825:I825)","v":0}]
[null,null,null,null,null,null,null,null,null,{"$f":"IF(J824=6,\"льгота\",\"\")","v":""}]
[null,"Телефоны",null,null,null,null,null,null,null,{"$f":"COUNTA(C827:I827)","v":0}]
[null,null,null,null,null,null,null,null,null,{"$f":"IF(J826=6,\"льгота\",\"\")","v":""}]
[null,null,null,null,null,null,null,null,null,{"$f":"COUNTA(C829:I829)","v":0}]
[null,null,null,null,null,null,null,null,null,{"$f":"IF(J828=6,\"льгота\",\"\")","v":""}]
[null,null,null,null,null,null,null,null,null,{"$f":"COUNTA(C831:I831)","v":0}]
[null,null,null,null,null,null,null,null,null,{"$f":"IF(J830=6,\"льгота\",\"\")","v":""}]
[null,null,null,null,null,null,null,null,null,{"$f":"COUNTA(C833:I833)","v":0}]
[null,null,null,null,null,null,null,null,null,{"$f":"IF(J832=6,\"льгота\",\"\")","v":""}]
[null,null,null,null,null,null,null,null,null,{"$f":"COUNTA(C835:I835)","v":0}]
[null,null,null,null,null,null,null,null,null,{"$f":"IF(J834=6,\"льгота\",\"\")","v":""}]
[]
[null,"№ карты","Дата поездки                                                                                           № машины",null,null,null,null,null,null,"Кол-во  поездок"]
[]
[null,45,null,null,null,null,null,null,null,{"$f":"COUNTA(C840:I840)","v":0}]
[null,null,null,null,null,null,null,null,null,{"$f":"IF(J839=6,\"льгота\",\"\")","v":""}]
[null,"Имя владельца",null,null,null,null,null,null,null,{"$f":"COUNTA(C842:I842)","v":0}]
[null,null,null,null,null,null,null,null,null,{"$f":"IF(J841=6,\"льгота\",\"\")","v":""}]
[null,null,null,null,null,null,null,null,null,{"$f":"COUNTA(C844:I844)","v":0}]
[null,null,null,null,null,null,null,null,null,{"$f":"IF(J843=6,\"льгота\",\"\")","v":""}]
[null,"Телефоны",null,null,null,null,null,null,null,{"$f":"COUNTA(C846:I846)","v":0}]
[null,null,null,null,null,null,null,null,null,{"$f":"IF(J845=6,\"льгота\",\"\")","v":""}]
[null,null,null,null,null,null,null,null,null,{"$f":"COUNTA(C848:I848)","v":0}]
[null,null,null,null,null,null,null,null,null,{"$f":"IF(J847=6,\"льгота\",\"\")","v":""}]
[null,null,null,null,null,null,null,null,null,{"$f":"COUNTA(C850:I850)","v":0}]
[null,null,null,null,null,null,null,null,null,{"$f":"IF(J849=6,\"льгота\",\"\")","v":""}]
[null,null,null,null,null,null,null,null,null,{"$f":"COUNTA(C852:I852)","v":0}]
[null,null,null,null,null,null,null,null,null,{"$f":"IF(J851=6,\"льгота\",\"\")","v":""}]
[null,null,null,null,null,null,null,null,null,{"$f":"COUNTA(C854:I854)","v":0}]
[null,null,null,null,null,null,null,null,null,{"$f":"IF(J853=6,\"льгота\",\"\")","v":""}]
[]
[null,"№ карты","Дата поездки                                                                                           № машины",null,null,null,null,null,null,"Кол-во  поездок"]
[]
[null,46,null,null,null,null,null,null,null,{"$f":"COUNTA(C859:I859)","v":0}]
[null,null,null,null,null,null,null,null,null,{"$f":"IF(J858=6,\"льгота\",\"\")","v":""}]
[null,"Имя владельца",null,null,null,null,null,null,null,{"$f":"COUNTA(C861:I861)","v":0}]
[null,null,null,null,null,null,null,null,null,{"$f":"IF(J860=6,\"льгота\",\"\")","v":""}]
[null,null,null,null,null,null,null,null,null,{"$f":"COUNTA(C863:I863)","v":0}]
[null,null,null,null,null,null,null,null,null,{"$f":"IF(J862=6,\"льгота\",\"\")","v":""}]
[null,"Телефоны",null,null,null,null,null,null,null,{"$f":"COUNTA(C865:I865)","v":0}]
[null,null,null,null,null,null,null,null,null,{"$f":"IF(J864=6,\"льгота\",\"\")","v":""}]
[null,null,null,null,null,null,null,null,null,{"$f":"COUNTA(C867:I867)","v":0}]
[null,null,null,null,null,null,null,null,null,{"$f":"IF(J866=6,\"льгота\",\"\")","v":""}]
[null,null,null,null,null,null,null,null,null,{"$f":"COUNTA(C869:I869)","v":0}]
[null,null,null,null,null,null,null,null,null,{"$f":"IF(J868=6,\"льгота\",\"\")","v":""}]
[null,null,null,null,null,null,null,null,null,{"$f":"COUNTA(C871:I871)","v":0}]
[null,null,null,null,null,null,null,null,null,{"$f":"IF(J870=6,\"льгота\",\"\")","v":""}]
[null,null,null,null,null,null,null,null,null,{"$f":"COUNTA(C873:I873)","v":0}]
[null,null,null,null,null,null,null,null,null,{"$f":"IF(J872=6,\"льгота\",\"\")","v":""}]
[]
[null,"№ карты","Дата поездки                                                                                           № машины",null,null,null,null,null,null,"Кол-во  поездок"]
[]
[null,47,null,null,null,null,null,null,null,{"$f":"COUNTA(C878:I878)","v":0}]
[null,null,null,null,null,null,null,null,null,{"$f":"IF(J877=6,\"льгота\",\"\")","v":""}]
[null,"Имя владельца",null,null,null,null,null,null,null,{"$f":"COUNTA(C880:I880)","v":0}]
[null,null,null,null,null,null,null,null,null,{"$f":"IF(J879=6,\"льгота\",\"\")","v":""}]
[null,null,null,null,null,null,null,null,null,{"$f":"COUNTA(C882:I882)","v":0}]
[null,null,null,null,null,null,null,null,null,{"$f":"IF(J881=6,\"льгота\",\"\")","v":""}]
[null,"Телефоны",null,null,null,null,null,null,null,{"$f":"COUNTA(C884:I884)","v":0}]
[null,null,null,null,null,null,null,null,null,{"$f":"IF(J883=6,\"льгота\",\"\")","v":""}]
[null,null,null,null,null,null,null,null,null,{"$f":"COUNTA(C886:I886)","v":0}]
[null,null,null,null,null,null,null,null,null,{"$f":"IF(J885=6,\"льгота\",\"\")","v":""}]
[null,null,null,null,null,null,null,null,null,{"$f":"COUNTA(C888:I888)","v":0}]
[null,null,null,null,null,null,null,null,null,{"$f":"IF(J887=6,\"льгота\",\"\")","v":""}]
[null,null,null,null,null,null,null,null,null,{"$f":"COUNTA(C890:I890)","v":0}]
[null,null,null,null,null,null,null,null,null,{"$f":"IF(J889=6,\"льгота\",\"\")","v":""}]
[null,null,null,null,null,null,null,null,null,{"$f":"COUNTA(C892:I892)","v":0}]
[null,null,null,null,null,null,null,null,null,{"$f":"IF(J891=6,\"льгота\",\"\")","v":""}]
[]
[null,"№ карты","Дата поездки                                                                                           № машины",null,null,null,null,null,null,"Кол-во  поездок"]
[]
[null,48,null,null,null,null,null,null,null,{"$f":"COUNTA(C897:I897)","v":0}]
[null,null,null,null,null,null,null,null,null,{"$f":"IF(J896=6,\"льгота\",\"\")","v":""}]
[null,"Имя владельца",null,null,null,null,null,null,null,{"$f":"COUNTA(C899:I899)","v":0}]
[null,null,null,null,null,null,null,null,null,{"$f":"IF(J898=6,\"льгота\",\"\")","v":""}]
[null,null,null,null,null,null,null,null,null,{"$f":"COUNTA(C901:I901)","v":0}]
[null,null,null,null,null,null,null,null,null,{"$f":"IF(J900=6,\"льгота\",\"\")","v":""}]
[null,"Телефоны",null,null,null,null,null,null,null,{"$f":"COUNTA(C903:I903)","v":0}]
[null,null,null,null,null,null,null,null,null,{"$f":"IF(J902=6,\"льгота\",\"\")","v":""}]
[null,null,null,null,null,null,null,null,null,{"$f":"COUNTA(C905:I905)","v":0}]
[null,null,null,null,null,null,null,null,null,{"$f":"IF(J904=6,\"льгота\",\"\")","v":""}]
[null,null,null,null,null,null,null,null,null,{"$f":"COUNTA(C907:I907)","v":0}]
[null,null,null,null,null,null,null,null,null,{"$f":"IF(J906=6,\"льгота\",\"\")","v":""}]
[null,null,null,null,null,null,null,null,null,{"$f":"COUNTA(C909:I909)","v":0}]
[null,null,null,null,null,null,null,null,null,{"$f":"IF(J908=6,\"льгота\",\"\")","v":""}]
[null,null,null,null,null,null,null,null,null,{"$f":"COUNTA(C911:I911)","v":0}]
[null,null,null,null,null,null,null,null,null,{"$f":"IF(J910=6,\"льгота\",\"\")","v":""}]
[]
[null,"№ карты","Дата поездки                                                                                           № машины",null,null,null,null,null,null,"Кол-во  поездок"]
[]
[null,49,null,null,null,null,null,null,null,{"$f":"COUNTA(C916:I916)","v":0}]
[null,null,null,null,null,null,null,null,null,{"$f":"IF(J915=6,\"льгота\",\"\")","v":""}]
[null,"Имя владельца",null,null,null,null,null,null,null,{"$f":"COUNTA(C918:I918)","v":0}]
[null,null,null,null,null,null,null,null,null,{"$f":"IF(J917=6,\"льгота\",\"\")","v":""}]
[null,null,null,null,null,null,null,null,null,{"$f":"COUNTA(C920:I920)","v":0}]
[null,null,null,null,null,null,null,null,null,{"$f":"IF(J919=6,\"льгота\",\"\")","v":""}]
[null,"Телефоны",null,null,null,null,null,null,null,{"$f":"COUNTA(C922:I922)","v":0}]
[null,null,null,null,null,null,null,null,null,{"$f":"IF(J921=6,\"льгота\",\"\")","v":""}]
[null,null,null,null,null,null,null,null,null,{"$f":"COUNTA(C924:I924)","v":0}]
[null,null,null,null,null,null,null,null,null,{"$f":"IF(J923=6,\"льгота\",\"\")","v":""}]
[null,null,null,null,null,null,null,null,null,{"$f":"COUNTA(C926:I926)","v":0}]
[null,null,null,null,null,null,null,null,null,{"$f":"IF(J925=6,\"льгота\",\"\")","v":""}]
[null,null,null,null,null,null,null,null,null,{"$f":"COUNTA(C928:I928)","v":0}]
[null,null,null,null,null,null,null,null,null,{"$f":"IF(J927=6,\"льгота\",\"\")","v":""}]
[null,null,null,null,null,null,null,null,null,{"$f":"COUNTA(C930:I930)","v":0}]
[null,null,null,null,null,null,null,null,null,{"$f":"IF(J929=6,\"льгота\",\"\")","v":""}]
[]
[null,"№ карты","Дата поездки                                                                                           № машины",null,null,null,null,null,null,"Кол-во  поездок"]
[]
[null,50,null,null,null,null,null,null,null,{"$f":"COUNTA(C935:I935)","v":0}]
[null,null,null,null,null,null,null,null,null,{"$f":"IF(J934=6,\"льгота\",\"\")","v":""}]
[null,"Имя владельца",null,null,null,null,null,null,null,{"$f":"COUNTA(C937:I937)","v":0}]
[null,null,null,null,null,null,null,null,null,{"$f":"IF(J936=6,\"льгота\",\"\")","v":""}]
[null,null,null,null,null,null,null,null,null,{"$f":"COUNTA(C939:I939)","v":0}]
[null,null,null,null,null,null,null,null,null,{"$f":"IF(J938=6,\"льгота\",\"\")","v":""}]
[null,"Телефоны",null,null,null,null,null,null,null,{"$f":"COUNTA(C941:I941)","v":0}]
[null,null,null,null,null,null,null,null,null,{"$f":"IF(J940=6,\"льгота\",\"\")","v":""}]
[null,null,null,null,null,null,null,null,null,{"$f":"COUNTA(C943:I943)","v":0}]
[null,null,null,null,null,null,null,null,null,{"$f":"IF(J942=6,\"льгота\",\"\")","v":""}]
[null,null,null,null,null,null,null,null,null,{"$f":"COUNTA(C945:I945)","v":0}]
[null,null,null,null,null,null,null,null,null,{"$f":"IF(J944=6,\"льгота\",\"\")","v":""}]
[null,null,null,null,null,null,null,null,null,{"$f":"COUNTA(C947:I947)","v":0}]
[null,null,null,null,null,null,null,null,null,{"$f":"IF(J946=6,\"льгота\",\"\")","v":""}]
[null,null,null,null,null,null,null,null,null,{"$f":"COUNTA(C949:I949)","v":0}]
[null,null,null,null,null,null,null,null,null,{"$f":"IF(J948=6,\"льгота\",\"\")","v":""}]
[]
[null,"защита листа - 111"]